Workbook

Sheet Welcome and Instructions
A1: Revised 1/15/14
A3: Welcome to the 2014-2015 Career and Technical Education (CTE) Local Plan and Budget Application in Excel. Please use the tabs at the bottom of this spreadsheet to complete the Certification and Assurances, Performance Assessment, and the Career and Technical Education Management System (CTEMS) Schedules 1 - 18. Use your local personal computer to prepare the document for submission to the Virginia Department of Education's (VDOE) through the Online Management of Education Grant Awards (OMEGA) reporting system.
A5: To print Annual Plan Document, please select this button:
A7: To view the Annual Plan Document by pages, click on "Page Break Preview" under View.
A8: NOTE: For additional instructions on how to submit files in OMEGA, please consult the OMEGA User's Manual at:
A9: http://www.doe.virginia.gov/school_finance/budget/grants_acct_reporting/omega/omega_user_guide.pdf
A10: Or, once you are in OMEGA on the division's opening page, you may click "Help" in the top right sidebar, and the first paragraph has the link to the OMEGA User's Guide. Additionally, you may e-mail questions or concerns regarding OMEGA by clicking on "Omega Support" in the top right sidebar.
A11: Also, you may contact OMEGA Support at 804-371-0993 or: | J11: Omega.Support@doe.virginia.gov
A12: For questions concerning the CTE Local Plan and Budget Application, please contact George Willcox, coordinator, or Joseph Wharff, specialist, CTE Planning, Adminsitration and Accountability, as assigned in Appendix A, at (804) 786-4206
A13: or | B13: CTE@doe.virginia.gov | G13: Do NOT contact OMEGA Support.
A15: Introduction
A16: The Carl D. Perkins Career and Technical Education Act of 2006 (referenced from this point on as the "Perkins Act" or "Perkins IV") requires that each eligible recipient develop and implement a Local Plan for Career and Technical Education that includes specific information in the following three areas:
B17: 1. program and services descriptions,
B18: 2. required uses of funds, and
B19: 3. permissible uses of funds.
A20: In an effort to reduce or eliminate redundancy as you respond to the Perkins Act, each requirement is dealt with on a separate schedule. A text box is provided for you to enter comments, additional categories, or narratives needed to describe or explain a particular program. Please follow the specific instructions listed for each schedule.
A21: To be eligible for CTE funding, school divisions must complete the appropriate schedules and include certifications of compliance with all statements of assurance and all conditions. The schedules provided are designed to set forth the proposed career and technical education programs, services, and activities to be funded. The local application for career and technical education funds must be submitted through the Single Sign-On for Web Systems (SSWS) via the OMEGA reporting system (NOTE: As well as 2003 Excel .xls files, OMEGA will now support uploading 2007 Excel .xlsx or .xlsm formatted files. If you experience any problems, please contact OMEGA Support.)
A22: Local Plan Due Date
A23: In compliance with | E23: federal requirements, | H23: the school division must submit its application to
A24: the VDOE in "substantially approvable form" via OMEGA not later than April 30, 2014. In order to obligate Perkins funds on July 1, 2014, school divisions must adhere to the submission due date.
A26: Federal Grants
B27: Under the provisions of the Perkins Act, all federal grants, as provided from the Basic Grant of the Perkins Act, must be distributed by formula. Application for this grant is made through the Career and Technical Education Management System (CTEMS) document and meets all necessary conditions and assurances related to the use of these funds.
A30: Basis for Determining 2014-2015 Perkins Grants to Local Education Agency (LEA)
B31: Grants made to local education agencies are determined by the following formula:
C33: Thirty (30) percent shall be allocated to such local educational agencies in proportion to the number of individuals in grades 9 through 12 (ages 15-19), inclusive, who reside in the school division served by such local education agency for the preceding fiscal year compared to the total number of such individuals who reside in the school divisions served by all local educational agencies in the state for such preceding fiscal year.
C34: Seventy (70) percent shall be allocated to such local educational agencies in proportion to the Census Bureau's estimate of the relative number of children in poverty aged 5 through 17, inclusive, who reside in the school division served by such local educational agency compared to the total number of such individuals who reside in the school divisions served by all local educational agencies in the state for the most recent Census Bureau estimate.
A36: Appropriate Use of Federal Funds (See Appendix B.)
B37: Section 135. Local Uses of Funds
A39: (a) | B39: General Authority - Each eligible recipient receiving funds under this part shall use such funds to improve career and technical education programs.
A41: Program Improvement
B42: As in prior Perkins Acts, Perkins IV does not identify "program improvement" nor was the past definition, in Perkins I, repealed; thus we must refer to previous legislation for a definition and guidance. In the August 14, 1992, Federal Register Part III 34 CFR Part 400, et al.: State Vocational and Applied Technology Education Programs and National Discretionary Programs of Vocational Education: Final Rule; Appendix A-Analysis of Comments and Changes, Part 403-State Vocational and Applied Technology Education Program, pages 36826-36827, you will find the Section titled "Improving Vocational Education" followed by "Comments and Discussion."
B43: The following statement appears under the discussion caption: "The Secretary believes that a State and its eligible recipients should have the flexibility to determine how funds awarded under 403.112, 403.113, or 403.116 will be used to 'improve' career and technical education programs for their students. The Secretary does not believe that it is possible to develop a definition of 'program improvement' that would apply in all cases. Thus, while a State is free to use the guidelines provided in the previous regulations implementing the previous act, they are not required to do so."
B44: Note. As a state agency, Virginia will allow funding for projects, services, or activities beyond three years as long as all Perkins performance standards are showing state-defined continuous improvement: meet, or exceed the adjusted state-level performance standards. If any of the Perkins performance standards fail to show continuous improvement, then school divisions may not utilize Perkins funds for more than three years on any project, service, or activity unless there are justifiable special circumstances. Justification to extend funding beyond the third year on any project, service or activity that failed to show continuous improvement must be submitted to the Office of Career and Technical Education prior to further implementation.
B45: The three years began with 2006 - 2007, the initial year of the Perkins IV Act or the year of the project, service or activity's inception, whichever is the later date.
A46: Funds for Administration of the Federal Grant Award
B47: Up to five percent of the total federal grant award may be used to administer activities to carry out purposes of the Perkins Act. In addition, funds may be expended to purchase equipment used for administrative purposes, such as microcomputers.
A52: SPECIAL NOTES
A54: 1 | B54: Allocations for completing the local budget: Use your current year allocation to complete the local budget part of this application. Once the VDOE receives the new allocations for the next school year from the U.S. Department of Education, school divisions will be notified by a Superintendent's Memorandum. If you have already submitted your CTE Local Plan and Budget Application prior to the final allocation, you will need to revise your budget and Budget Worksheet.
A55: 2 | B55: Review of Local Plan and Budget Applications. Please see the list in Appendix A of these directions to determine who will be reviewing your plan at the VDOE. If you have questions, please contact the appropriate CTE staff.
A56: 3 | B56: Required and Permissive Uses of Perkins Funds: Virginia allows up to 40 percent of your total Perkins allocation for Permissive Uses of Funds. School divisions must use 60 percent or more on Required Uses of Funds. Both Required and Permissive Uses of Funds are designated by the Perkins Act (refer to Appendix B). If you have questions, please contact the appropriate CTE staff.
A57: 4 | B57: Expenditure Account Descriptions: Be sure to use Appendix C for accurate assignment of expenditures in the budget segment of your application.
A58: 5 | B58: DO NOT Round Budget Amounts: In the application, the budget total must match the federal allocation exactly. Do not round budget amounts.
A59: 6 | B59: Regional Career and Technical Centers: Complete the Local Plan using the schedules identified on the CTEMS Schedules Checklist tab.
A60: 7 | B60: Accountability Report: An accountability report will be required at the end of the fiscal period to report actual financial data for items included on CTEMS Schedules 16 and 17 and to report equipment items purchased in whole or in part with federal funds.
A61: 8 | B61: Prior-Year Data: Prior-year data will serve as the basis for projecting 2014-2015 state or federal funding in the following categories:
B62: Standards of Quality (SOQ) Add-on | I62: Adult Occupation Supplements
B63: Federal Grants | I63: Adult Occupation Teachers, Full-time
B64: Extended Contracts | I64: Adult Occupation Teachers, Part-time
B65: CTE Center Administrators
B66: (Principals and Assistant Principals)
A68: 9 | B68: New Programs/Courses. The Application for New CTE Programs/Courses is reported outside of the OMEGA system and is located at and may be downloaded from:
B69: http://www.doe.virginia.gov/instruction/career_technical/administration/index.shtml
A71: SPECIFIC DIRECTIONS FOR COMPLETING THE LOCAL YEAR PLAN FOR CAREER AND TECHNICAL EDUCATION FUNDS
A72: NOTE: When using hyperlinks, you may return to your original schedule by clicking the tab where you were working at the bottom of this screen.
A73: 1 | B73: CERTIFICATIONS AND ASSURANCES
B74: Use the drop-down menu to choose your school division and division number. Complete all other requested information and obtain signatures. The original Certification and Assurances page(s) with appropriate signatures must be retained and filed at the local level. A copy of the signed Certification and Assurances page(s) must be faxed to the Office of Career ad Technical Education at 804-530-4560.
B75: For assistance in obtaining access to OMEGA, (User Permission Form for School Divisions - OP1), the OMEGA User's Guide, and requirements for application submission, please refer to the OMEGA information page at:
C76: http://www.doe.virginia.gov/school_finance/budget/grants_acct_reporting/omega/index.shtml
A78: 2 | B78: TECHNICAL SKILLS ASSESSMENT CERTIFICATION
B79: Review each statement and obtain the signature of the CTE director/coordinator and the division superintendent.
A81: 3 | B81: PERFORMANCE ASSESSMENT REPORT
B82: Complete all required information. This section replaced the Local Improvement Plan as of the 2007 - 2008 school year. Performance standards that are not met must be addressed within the schedules of the plan and the budget.
A84: 4 | B84: CTEMS SCHEDULES
B85: To ensure compliance with provisions of the Perkins Act, you must provide descriptions of CTE services in the schedules as appropriate. Please indicate in narrative format, where required, your division's practices, policies, or plans. Use the CTEMS Schedule Checklist tab to identify required or optional schedules to be completed for divisionwide local plans and for CTE Regional Technical Centers.
A87: Schedule 1
B88: Stakeholder Participation/Involvement. Describe your local process for involving the required groups in the development, implementation, and evaluation of CTE programs.
A89: Schedule 2
B90: Application for Local Career Cluster/Pathway Plans of Study. As of school year 2012-2103 and thereafter, all divisions shall implement at least one or more Career Pathway Plans of Study representing at least three or more corresponding Career Clusters. However, to ensure your division’s previous Plans of Study (submitted over the past 7 years) are preparing students to meet local, regional, and state economic and workforce needs, you are advised to review and revise each as necessary. Please e-mail a Microsoft Word file of your completed 2014-2015 Plan of Study to CTE@doe.virginia.gov for separate approval.
A91: Schedule 3
B92: Special Populations Report. List the number of individuals eligible for services provided by the school division in each of the following special populations: economically disadvantaged (K-12), disabled (K-12), limited English proficient/English language learners (K-12), migrant students (K-12), single parents (7-12), nontraditional--underrepresented gender group (7-12), and displaced homemakers (7-12).
B93: Strategies for Overcoming Access Barriers and Assuring Success for Special Populations. Describe how you will annually review CTE programs and implement strategies to overcome barriers that result in lowering rates of access to or success in the programs for special populations and provide programs designed to enable the special populations to meet the state adjusted levels of performance.
B94: Non-discrimination Statement. Describe how individuals will not be discriminated against on the basis of their status as members of a special populations
B95: Identification of Services. Check the appropriate services offered for each special population in your division. Please note that child-care, special transportation, and special seminars for fathers, teens, e.g., are only available to single-parents, nontraditional, and displaced homemaker students.
A97: Schedule 4
B98: Strengthen/Improve Academic and Technical Skills. Indicate in the program area checklist activities for school year 2014-2015 that are intended to strengthen and improve the academic and technical skills of participating students.
A99: Schedule 5
B100: All Aspects of Industry. Indicate in the program area checklist activities for school year 2014-2015 that are intended to provide students with experience in and understanding of all aspects of industry.
A101: Schedule 6
B102: Technology in Career and Technical Education. Indicate in the program area checklist activities for school year 2014-2015 that are intended to develop, improve, or expand the use of technology in CTE.
A103: Schedule 7
B104: Professional Development. Indicate in the program area checklist activities for school year 2014-2015 that are intended to provide professional development to teachers, career counselors, and administrators associated with any of your CTE programs. Also, in the second program area checklist, indicate the number of teachers who will be participating in professional development activities.
A105: Schedule 8
B106: Evaluation of Career and Technical Education Programs. Agreement to each item is required for school year 2014-2015 to develop and implement evaluations of the CTE programs.
A107: Schedule 9
B108: Improvement, Expansion, and Modernization. Indicate in the program area checklist activities for school year 2014-2015 that are intended to initiate, improve, expand and modernize quality career and technical education programs.
A109: Schedule 10
B110: Using Data to Improve Career and Technical Education. Describe how you will use the data provided for your school division on the State System of Performance Standards and Measures to improve CTE.
A111: Schedule 11
B112: Sufficient Size, Scope, and Quality of Program Services and Activities. Indicate in the service/activity checklist that programs provided and funded under this Perkins Act are of sufficient size, scope, and quality to ensure effectiveness.
A113: Schedule 12
B114: Secondary/Postsecondary Linkages. Identify and provide details (where applicable) for school year 2014-2015 activities implemented to facilitate linkage between and transition from secondary to postsecondary programs. Employment Counseling. Describe how the career guidance system provides employment counseling to furnish information on available employment opportunities to all students, including students who are disabled. Placement Services and Job-Seeking Skills. Describe placement services provided for all students exiting school. Describe how job-seeking skills are provided to all secondary students including those identified as disabled.
A115: Schedule 13
B116: Equity Provisions of General Education Provision Act. Describe steps that will be taken to ensure equitable access to, and equitable participation in the project or activity to be conducted with such assistance by addressing the special needs of students, teachers, and other program beneficiaries in order to overcome barriers to equitable participation, including barriers based on gender, race, color, national origin, religion, age, political affiliation, veteran status, persons with disabilities, and equal access to the Boy Scouts and other designated youth groups.
A118: Schedule 14
B119: Labor Market Needs. Describe how labor market needs are reviewed and addressed to ensure programs and courses offered meet the needs of your school division.
A120: Schedule 15
B121: Participation in Regional Technical Education Programs. (Only to be completed by school divisions participating in regional programs that serve multiple divisions.)
B122: Column A: Total CTE Students in School Division
C123: Indicate the total number of students enrolled in CTE classes in your division. This should include students paticipating/enrolled in courses at the home school and in the regional programs. This should be an unduplicated count. Use current year data. Add to your unduplicated count the number of students attending class at a regional center.
B124: Column B: Number of CTE Students Enrolled in Courses in Regional CTE Programs
C125: Indicate the number of students from your divisions participating in regional programs. Use current year data.
B126: Column C: Percent of CTE Students
C127: Divide the number in Column B by the number in Column A. Once Columns A and B are completed, the calculation is automatically programmed for Column C.
B128: Column D: Amount of Perkins Funds to be Sent to the Regional CTE Programs
C129: The amount of Perkins funding in Column D must equal the percentage identified in Column C. (Multiply total Perkins funding allocation times percentage in Column C.)
A131: Schedule 16
B132: Career and Technical Education Financial Data
C133: Administration (State and Local Funds)
C134: Lines 1 and 2: Principals and Assistant Principals
D135: Indicate the TOTAL PROJECTED COSTS of CTE center administrators (principals and assistant principals) by category. Indicate projected state and local for each.
C136: Extended Contracts, Adult Supplements, and Local Funds. (Documentation of local funds provides needed information for maintenance of effort by the locality.)
C137: Line 3: Extended Contracts
D138: Indicate the PROJECTED TOTAL costs, by state and local projected expenditures, for extended contracts (11-month, 12-month, and other) in all CTE program areas.
C139: Line 4: Adult Occupation Supplements
D140: Indicate the PROJECTED TOTAL costs, by state and local projected expenditures, for adult supplements.
C141: Line 5: Adult Occupation Teachers (Full-time)
D142: Indicate the PROJECTED TOTAL costs, by state and local projected expenditures, for all full-time adult teachers.
C143: Line 6: Adult Occupation Teachers (Part-time)
D144: Indicate the PROJECTED TOTAL costs, by state and local projected expenditures, for all part-time adult teachers.
C145: Line 7: Operational Costs (Local Funds Only)
D146: Indicate the PROJECTED TOTAL local expenditures for salaries. Do not include extended contract supplements.
C147: Line 8: Instructional Supplies and Materials (Local Funds Only)
D148: Indicate the PROJECTED TOTAL local expenditures for instructional supplies and materials.
C149: Line 9: Other Instructionally Related Costs (Local Funds Only)
D150: Indicate the PROJECTED TOTAL local expenditures for other instructionally related costs.
C151: Line 10: Equipment (Local funds Only)
D152: Indicate the PROJECTED TOTAL local expenditures for equipment. Localities must meet the state maintenance of effort for equipment.
B154: Schedule 17
B155: Budget of Perkins Funds
B156: The Perkins Act contains the following statement in Section 135 (a):
C157: General Authority - Each eligible recipient that receives funds under this part shall use such funds to improve career and technical education programs.
B158: -1 | C158: In Column 1, indicate required or permissive funds and the funding requirement code under required or permissive for which expenditures are planned using federal funds. Use the arrow above the pop-up message to access the drop-down menu to choose codes. A link in the Column heading will take you to Appendix B of the Instructions for code explanations. A locality must fund professional development, activities to prepare special populations, and one or more additional required uses of funds before permissive items can be funded. Warning: The total amount for permissive items may not exceed 40 percent of the total federal grant (a note will appear if you exceed the 40 percent).
B159: -2 | C159: In Column 2, use the drop-down menu to indicate the name of the program area for which expenditures are planned using federal funds. "All" is an option.
B160: -3 | C160: In Column 3, describe how the expenditure will assist your division in continuously improving the academic and technical skills of students participating in career and technical education programs and in meeting the state levels of performance established under Section 113 of the Perkins Act.
B161: -4 | C161: In Column 4, using the drop-down arrow, identify the object code used for budgeting expenditures.
B162: -5 | C162: In Column 5, using the drop-down arrow, identify the source of funding: FED - Federal, ST - State, or LOC - Local. Fill in the amount for each category identified.
A163: Schedule 18
A164: Administration/Administrative Equipment Funds and Budget Summary Worksheet
B165: Administration and Administrative Equipment
C166: Enter description and amounts to be used for administration of Perkins Act activities, and for the purchase of equipment to be used for administrative purposes, such as microcomputers. Object Code 5000 - a separate line has been provided to list Indirect Costs. The total amount for administration may not exceed five (5) percent of the total federal grant (a note will appear if you exceed the five (5) percent).
B168: Summary Budget Worksheet
C169: The Worksheet will automatically classify the Federal proposed activities identified on CTEMS Schedule 17 - Budget of Perkins Funds, and Schedule 18 - Administrative and Administrative Equipment, according to the correct expenditure categories on the Summary Budget Worksheet. Refer to Appendix C for Expenditure Accounts Descriptions. The total amount of all expenditure categories must equal the CTEMS Schedule 17 Grand Total.
A171: NOTE: Please coordinate with your finance and/or budget office for the correct placement of budget items into the expenditure categories.
A173: Comments Page
B174: Please use this page for any additional comments you may have on any of the previous schedules. Please identify the schedule number with the comments.
A176: APPENDIX A
A177: LOCAL DIVISION ASSIGNMENTS
A267: APPENDIX B
A268: REQUIRED AND PERMISSIVE USE OF FUNDS
A443: APPENDIX C
A444: EXPENDITURE ACCOUNTS DESCRIPTIONS
A445: These accounts are for budgeting/recording expenditures of the educational agency for activities under its control. Below are definitions of the major expenditure categories. These descriptions provided are examples only. For further clarification on the proper expenditures of funds, contact the grants administrator, Terry Dougherty at 804-225-3349 or
A446: CTE@doe.virginia.gov.

Sheet Certification and Assurances
M1: Original | Q1: <----Identify Version
A2: Virginia Department of Education
A3: Office of Career and Technical Education Services
A5: LOCAL PLAN FOR CAREER AND TECHNICAL EDUCATION (CTE) PERKINS FUNDS 2014-2015
A6: (A copy of this signed form must be faxed to the Office of Career and Technical Education at 804-530-4560)
A8: Division and Contact Information - to be Completed by School Division
A9: Division Applicant Name (Legal Name of Agency) | H9: Division | J9: CTE Administrator
A10: ALEXANDRIA CITY PUBLIC SCHOOLS | H10: Number | I10: =IF(ISBLANK(A10)," ",VLOOKUP(A10,Prefills!A2:B151,2)) -> 101 | J10: Sherri W. Chapman
A11: Mailing Address (Street, City or Town, and Zip Code) | H11: Mailing Address (If different than applicant address)
A12: 2000 N. Beauregard St. Alexandria, VA 22311
A14: Phone (ext): | B14: 7038246680 | E14: Fax: | F14: 7038361928 | H14: Phone (ext): | M14: Fax:
B15: Numbers Only | D15: Ext. | F15: Numbers Only | J15: Numbers Only | L15: Ext. | N15: Numbers Only
E16: E-mail: | F16: sherri.chapman@acps.k12.va.us
A18: Certification
B20: The eligible recipient does hereby certify that the assurances and conditions stipulated in this plan will be complied with in providing programs and activities for career and technical education and that funds will be used as stipulated in the approved plan. Via signatures below, this division certifies that it will adhere to the requirements and regulations in the CTE Perkins Local Plan sections listed below:
C21: Requirements of the Carl D. Perkins Career and Technical Education Act of 2006. Please note this includes:
D22: · Perkins IV Technical Skills Assessment Certification;
D23: · Certification Regarding Debarment, Suspension, Ineligibility and Voluntary Exclusion - Lower tier Covered Transactions (Conditions - Item 10);
D24: · Certification of Non-Construction and Construction Programs (Conditions - Item 11);
D25: · Disclosure of Lobbying Activities (Conditions - Item 12);
D26: · Coordination of Sample Career Cluster/Pathway Plans of Study and/or Academic Career Plan;*
D27: · Performance Assessment Results (Performance Assessment Tab);
D28: · Stakeholder Participation/Involvement CTEMS Schedule 1 (CTEMS Schedule Tab); and
D29: · Evaluation of Career and Technical Education Programs CTEMS Schedule 8 (CTEMS Schedule Tab).
A32: CTE Local Advisory Chairperson (Signature) | I32: Date
A34: Local Community College Perkins Administrator (Signature)* | I34: Date
A36: Local CTE Administrator (Signature) | I36: Date
A38: School Board Chairperson (Signature) | I38: Date
A40: Division Superintendent (Signature) | I40: Date
B43: School Division: | G43: =$A$10 -> ALEXANDRIA CITY PUBLIC SCHOOLS | M43: Division Number: | P43: =$I$10 -> 101
A45: Carl D. Perkins Career and Technical Education Act of 2006
A46: Assurances (continued on next page)
A48: 1. | B48: Programs, services, and activities included under this agreement will be operated in accordance with the Carl D. Perkins Career and Technical Education Act of 2006 (Perkins IV) and all applicable Virginia Public School Laws.
A50: 2. | B50: None of the funds made available under this Perkins Act (Perkins IV) will be used to provide funding under the Wagner-Peyser Act and Public Law 105-220. (Sec. 119(d)(1-2))
A52: 3. | B52: The applicant will submit descriptive and statistical reports containing complete, accurate, and reliable data that measure the progress of students, including special populations, as required by Perkins IV, the Education Improvement Act of 1984, and the State Department of Education. (Sec. 122(c)13)
A54: 4. | B54: Students who participate in career and technical education programs will be taught the same challenging academic proficiencies as all other students. (Sec. 134(b)3)
A56: 5. | B56: The applicant will provide a career and technical education program that is of such size, scope, and quality to bring about improvement in the quality of career and technical education programs. (Sec. 134(b)3) and (Sec. 135(b)7)
A58: 6. | B58: The applicant that receives funds under this part will use such funds to improve career and technical education programs. (Sec. 135(a))
A60: 7. | B60: Funds made available under this Perkins Act for career and technical education activities will supplement and shall not supplant, non-federal funds expended to carry out career and technical education and tech prep activities. (Sec. 311(a))
A62: 8. | B62: No funds received under the Perkins Act will be used to require any secondary school student to choose or pursue a specific career path or major or to mandate that any individual participate in a career and technical education program, including a career and technical education program that requires the attainment of a federally funded skill level, standard, or certificate of mastery. (Sec. 314)
A64: 9. | B64: No funds received under this Perkins Act will be used to provide career and technical education programs prior to the seventh grade, except that equipment and facilities purchased with funds under this Act may be used by such students. (Sec. 315)
A66: 10. | B66: No funds provided under this Perkins Act will be used for the purpose of directly providing incentives or inducement to employers to relocate a business enterprise from one state to another state if such relocation will result in a reduction in the number of jobs available in the state where the business enterprise is located before such incentives or inducements are offered. (Sec. 322)
A68: 11. | B68: Funds used under this Perkins Act for in-service and pre-service career and technical education professional development programs for career and technical education teachers, administrators, and other personnel may, upon request, permit program participation by career and technical education teachers, administrators, and other personnel in non-profit private schools offering career and technical education programs located in the geographical area served by such agency or recipient. (Sec. 317)
A70: 12. | B70: None of the funds expended under Perkins IV will be used to acquire equipment (including computer software) in any instance in which such acquisition results in a direct financial benefit to any organization representing the interest of the purchasing entity, the employees of the purchasing entity, or any affiliate of such an organization.
A72: 13. | B72: Programs funded under the Perkins Act will be coordinated with the local Workforce Investment Council to avoid duplication with Workforce Investment Act Title I programs, adult education, and other federal training programs (Sec. 118).
A74: 14. | B74: The local school division will use the state-provided career and technical program area competency list identified for each course to provide instruction for students and to rate the student’s level of competency attainment.
A76: 15. | B76: The local school division shall: a. identify the number of special population students enrolled in career and technical education programs; b. assess the career and technical needs of the students identified as special populations; and c. develop an adequate plan to provide supplementary services sufficient to meet the needs of such students.
B78: School Division: | G78: =$A$10 -> ALEXANDRIA CITY PUBLIC SCHOOLS | M78: Division Number: | P78: =$I$10 -> 101
A80: Carl D. Perkins Career and Technical Education Act of 2006
A81: Assurances (continued from previous page)
A84: 16. | B84: This plan has been developed in consultation with the local career and technical education advisory committee which is composed of members of the public, especially representatives from business, industry, and labor (if applicable), including appropriate representation of both sexes and the racial and ethnic minorities found in the school, community, or region and in consultation with teachers, parents, students, and interested community leaders.
A86: 17. | B86: Local programs of career and technical education shall be evaluated annually using the performance standards and measures as approved by the Virginia Board of Education, and in compliance with the requirements of Section 113 of the Carl D. Perkins Career and Technical Education Act of 2006. Section 134(b)(7) and Section 135(b)(6): Develop and implement evaluations of the career and technical education programs carried out with funds under this Act, including an assessment of how the needs of special populations are being met.
A88: 18. | B88: Equal opportunities in career and technical education programs will be provided to persons and without discrimination because of race, gender, religious preference, national origin, or disability.
A90: 19. | B90: Statistical, financial, and descriptive reports and data required by the Virginia Board of Education and/or the Virginia Department of Education with regard to career and technical education programs will be submitted as requested and within the specified timelines.
A92: 20. | B92: Procedures are in place to ensure that lists of essential competencies that are modified for students with Individualized Education Programs (IEPs) or Section 504 plans must, as a group, be selected so that student attainment of the modified list of essential competencies prepare the student for a job or occupation.
A94: 21. | B94: Career and technical services, programs, and activities will reflect labor market needs and student interest.
A96: 22. | B96: Career and technical student organizations will be an integral and active part of each career and technical program.
A98: 23. | B98: The local plan has been approved by the school board and will be implemented upon approval of the Virginia Department of Education.
A99: 24. | B99: The school division will conduct a comprehensive self-assessment of the career and technical education program. The school division will develop a plan of action to address each unmet requirement and assure timely implementation of the plan. The CTE Federal Program Monitoring Review system requires school divisions to review the CTE program on a six-year cyclical schedule. If applicable, school divisions must complete a comprehensive self-assesment instrument and submit in conjunction with the CTE Local Plan by April 30, 2014.
B100: (Refer to Superintendent's Memorandum #287-13, dated October 25, 2013.)
B103: School Division: | G103: =$A$10 -> ALEXANDRIA CITY PUBLIC SCHOOLS | M103: Division Number: | P103: =$I$10 -> 101
A105: Conditions
A107: 1. | B107: An inventory of all equipment purchased in whole or part with federal funds provided by the Virginia Board of Education will be maintained, and all such equipment will be available for use by students in the approved career and technical education program for which it was purchased.
A109: 2. | B109: Recipients of federal funding that plan to use any equipment purchased in whole or in part with federal funds provided by the Virginia Board of Education in any program, project or activity other than the one for which it was originally purchased or who planned to dispose of or trade in such equipment must comply with the provisions of EDGAR.
A111: 3. | B111: Funds will not be expended in any manner other than as budgeted in the original plan or amended plan (if applicable). In the event funds need to be expended (category or dollar amount) in any manner other than stipulated in this CTEMS plan, the eligible recipient must submit, in writing, a request to amend the CTEMS plan. This request must include an explanation of proposed changes along with a revised copy of Schedules 17 and 18.
A113: 4. | B113: Perkins funds will not be expended prior to the receipt of a letter of approval for the original plan and/or the amended plan (if applicable).
A115: 5. | B115: The local plan shall be for the same period of time as the State Plan submitted under Section 122 (five-year plan).
A117: 6. | B117: The locality will not fund any project, service, or activity for more than three years, the year of its inception and the two following years, unless they are showing continuous improvement, meet or exceed all Perkins performance standards.
A120: 7. | B120: Career and technical education programs will operate consistently with all federal and state requirements and regulations.
A122: 8. | B122: Reports and other information required by the Virginia Board of Education will be submitted within the dates and timelines established, and documentation will be maintained for five years.
A124: 9. | B124: Reimbursement requests from school divisions will not be processed for those school divisions that have outstanding data and/or reports required by federal legislation, state legislation, or the Virginia Board of Education.
A126: 10. | B126: The locality will comply with certification regarding debarment, suspension, ineligibility, and voluntary exclusion – lower tier covered transactions.
A128: 11. | B128: The locality will comply with all applicable assurances in OMB Standard Forms 424B and D (Assurances for Non-Construction and Construction Programs), including the assurances relating to the legal authority to apply for assistance; access to records; conflict of interest; merit systems; nondiscrimination; Hatch Act provisions; labor standards; flood hazards; historic preservation; protection of human subjects; animal welfare; lead-based paint; Single Audit Act; and the general agreement to comply with all applicable federal laws, executive orders and regulations.
A130: 12. | B130: With respect to the certification regarding lobbying in Department Form 80-0013, no federal appropriated funds have been paid or will be paid to any person for influencing or attempting to influence an officer or employee of any agency, a Member of Congress, an officer or employee of Congress, or an employee of a Member of Congress in connection with the making or renewal of federal grants under this program; the State will require the full certification, as set forth in 34 CFR Part 82, Appendix A, in the award documents for all subawards at all tiers; and the State will complete and submit Standard Form-LLL, "Disclosure Form to Report Lobbying," when required (34 CFR Part 82, Appendix B).
A132: 13. | B132: The Locality will comply with the following provisions of Education Department General Administrative Regulations (EDGAR), as applicable: 34 CFR Part 74—Administration of Grants and Agreements with Institutions of Higher Education, Hospitals, and Other Non-Profit Organizations; 34 CFR Part 76—State-Administered Programs, including the construction requirements in section 75.600 through 75.617 that are incorporated by reference in section 76.600; 34 CFR Part 77—Definitions that Apply to Department Regulations; 34 CFR Part 80—Uniform Administrative Requirements for Grants and Cooperative Agreements to State and Local Governments, including the procurement provisions; 34 CFR Part 81 -- General Education Provisions Act—Enforcement; 34 CFR Part 82—New Restrictions on Lobbying; 34 CFR Part 85—Government wide Debarment and Suspension (Nonprocurement).
B135: School Division: | G135: =$A$10 -> ALEXANDRIA CITY PUBLIC SCHOOLS | M135: Division Number: | P135: =$I$10 -> 101
A138: Perkins IV Technical Skills Assessment Certification (To be submitted annually with Local Plan and Budget Application.)
A141: 1. | B141: I certify that all Career and Technical Education programs in my school division are using the state developed CTE course frameworks to teach essential competencies in each course. It is understood that locally developed competencies may be added as appropriate.
A143: 2. | B143: I certify that the following operational guidelines are being followed in all CTE programs in my school division. a) Competencies are specified to students prior to instruction. b) Competencies include “all aspects of the industry” and “workplace readiness skills.” c) An internal evaluation system (i.e., state supplied Student Competency Record)* is utilized for rating and documenting the competency performance of each student. (Students may be involved in assessing their work, but only a teacher or administrator may rate and document the performance.) *Student Competency Records should be used accordingly: a) Teachers should review the task definitions for each essential task/competency to examine assessment requirements. b) Based on the performance level criteria and task definitions, teachers make independent professional decisions about the performance level of students on each essential competency. c) Grading rubrics should be used where appropriate in skill performance applications. d) Student competency records should be retained in the school division for five years.

Sheet Performance Assessment
B2: School Division: | G2: =T('Certification and Assurances'!$A$10:$G$10) -> ALEXANDRIA CITY PUBLIC SCHOOLS | M2: Division Number: | P2: ='Certification and Assurances'!$I$10 -> 101
A4: PERFORMANCE ASSESSMENT for 2012-2013
A5: (Annual Submission Required)
B7: The school division's local plan should reflect activities/projects that address Perkins Performance Standards that have not improved or that do not meet the Virginia Agreed Upon Perkins Performance Levels. This information will be used to inform appropriate technical assistance, on-site visits, and/or local Federal Program Monitoring visits.
B9: If a performance standard is not met, the school division must explain why and the actions taken to improve performance on the following page. Once a school division has met the state performance standards, they must maintain or show continuous improvement each year.
B10: Directions: Provide the school division's actual performance levels for 2012-2013 for all completers and special populatons.
B12: Perkins Performance Standards | H12: Virginia Agreed Upon Performance Levels for 2012 - 2013 | K12: 2012 - 2013 Actual Performance from APR
K13: All Completers | M13: Special Populations
B14: 1S1 | C14: Academic Attainment - Reading (English 11) | H14: 0.85 | K14: 0.9864 | M14: 0.9805
B15: 1S2 | C15: Academic Attainment - Mathematics (Highest Level) | H15: 0.61 | K15: 0.9762 | M15: 0.9657
B16: 2S1A | C16: Technical Skills Attainment - Student Competency Rate | H16: 0.84 | K16: 1 | M16: 1
B17: 2S1B | C17: Technical Skills Attainment - Completers Participating in Credentialing Tests | H17: 0.55 | K17: 0.9459 | M17: 0.9415
B18: 2S1C | C18: Technical Skills Attainment - Test Takers (Completers) Passing Credentialing Tests Rate | H18: 0.75 | K18: 0.75 | M18: 0.6995
B19: 2S1D | C19: Technical Skills Attainment - Completers Passing Credentialing Test Rate* | H19: 0.35 | K19: 0.7095 | M19: 0.6585
B20: 2S1E | C20: Technical Skills Attainment - Completers Earning Advanced Studies Diploma or Passing a Credentialing Test | H20: 0.43 | K20: 0.7568 | M20: 0.6878
B21: 3S1 | C21: Secondary School Completion | H21: 0.88 | K21: 0.9966
B22: 4S1 | C22: Graduation Rate | H22: 0.83 | K22: 0.9696
B23: 5S1 | C23: Secondary Placement Rate (Transition from Secondary Education to Postsecondary Education, Employment or Military) | H23: 0.88 | K23: 0.9834 | M23: 0.9819
B24: 5S1 | C24: Program Completer Response Rate | H24: 0.75 | K24: 0.7627
B25: 6S1 | C25: Nontraditional Career Preparation Enrollment | H25: 0.25 | K25: 0.3571
B26: 6S2 | C26: Nontraditional Career Preparation Completion | H26: 0.22 | K26: 0.2838
B27: ** EOC - End-of-Course
B30: School Division: | G30: =T('Certification and Assurances'!$A$10:$G$10) -> ALEXANDRIA CITY PUBLIC SCHOOLS | M30: Division Number: | P30: ='Certification and Assurances'!$I$10 -> 101
A33: PERFORMANCE ASSESSMENT
A34: (Continued from previous page)
B37: The Annual Performance Report (APR) for your school division is available at
B38: http://www.doe.virginia.gov/instruction/career_technical/statistics_reports/index.shtml
B40: 1. How many performance standard(s)/element(s) were not met for first time.
B41: Select the performance standard(s) not met from the drop down menu below (click in box - menu will open). Explain why each standard was not met.
B47: 2. How many performance standard(s)/element(s) were not met for two consecutive years.
B48: Select the performance standard(s) not met from the drop down menu below (click in box - menu will open). Explain why each standard was not met and what action was taken in prior years to improve the performance.
B54: 3. How many performance standard(s)/element(s) were not met for three consecutive years. | M54: 1
B55: Select the performance standard(s) not met from the drop down menu below (click in box - menu will open). Explain why each standard was not met and what action was taken in prior years to improve the performance.
B56: 2S1C-Test Takers Passing Credentialing Tests-Special Populations
B59: The CTE Specialist will collaborate with Student Services and the ELL office to identify teaching strategies and best practices to share with CTE teachers. (Schedule 17) Course-related strategies will be developed to identify and overcome any obstacles related to academic achievement and help increase test scores on CTE industry certification tests. (Schedule 10) CTE teachers will collaborate by posting successful Workplace Readiness Skills lesson plans on Blackboard and sharing test-readiness strategies for special populations.
B61: School Division: | G61: =T('Certification and Assurances'!$A$10:$G$10) -> ALEXANDRIA CITY PUBLIC SCHOOLS | M61: Division Number: | P61: ='Certification and Assurances'!$I$10 -> 101
A64: 2013-2014 PERFORMANCE ASSESSMENT TARGETS
B66: School divisions are required to meet or exceed the Virginia Agreed Upon Perfomance Levels. For your information, the following chart provides the list of Perkins Core Indicators of Performance, the 2013-2014 state (negotiated) agreed upon levels of performance, and the data collection sources. For more detailed information, refer to CTE Memo No. 056-13, dated September 4, 2013.
B69: Perkins Core Indicator of Performance | H69: Virginia Agreed Upon Performance Levels for 2013 - 2014 | K69: Data Collection Source
B71: 1S1* | C71: Academic Attainment - Reading (English 11) | H71: 0.66 | K71: **EOC Standard of Learning Test Scores
B72: 1S2* | C72: Academic Attainment - Mathematics (Highest Level) | H72: 0.64 | K72: **EOC Standard of Learning Test Scores
B73: 2S1A | C73: Technical Skills Attainment - Student Competency Rate | H73: 0.84 | K73: Final Completer Demographics Report (CDR) and Career and Technical Education Credential Collection (CTECC)
B74: 2S1B | C74: Technical Skills Attainment - Completers Participating in Credentialing Tests | H74: 0.55
B75: 2S1C | C75: Technical Skills Attainment - Test Takers (Completers) Passing Credentialing Tests Rate | H75: 0.76
B76: 2S1D | C76: Technical Skills Attainment - Completers Passing Credentialing Test Rate | H76: 0.35
B77: 2S1E | C77: Technical Skills Attainment - Completers who passed a credentialing test plus Completers who earned an Advanced Studies Diploma and did not pass a credentialing test | H77: 0.43
C78: Information Indicator - Completers who earned an Advanced Studies Diploma and passed a credentialing test | H78: Not Applicable
B79: 3S1 | C79: Secondary School Completion | H79: 0.91 | K79: Final Completer Demographics Report (CDR) and End-of-Year Student Record Collection Drop-out Report
B80: 4S1 | C80: Graduation Rate | H80: 0.86 | K80: Final Completer Demographics Report (CDR)
B81: 5S1 | C81: Secondary Placement Rate (Transition from Secondary Education to Postsecondary Education, Employment or Military) | H81: 0.9 | K81: CTE Follow-up Survey of Program Completers
B82: 5S1 | C82: Program Completer Response Rate | H82: 0.75 | K82: CTE Follow-up Survey of Program Completers
B83: 6S1 | C83: Nontraditional Career Preparation Enrollment | H83: 0.28 | K83: Secondary Enrollment Demographics Form (SEDF)
B84: 6S2 | C84: Nontraditional Career Preparation Completion | H84: 0.25 | K84: Final Completer Demographics Report (CDR)
B85: * Based on Virginia's Federal Annual Measurable Objectives (FAMO) for all students under the NCLB Act, fexibility waivers granted by USDOE in March 2013. Reading-Calculated based on results of the new statewide reading assessments administered for the first time during the 2012-2013 school year. Mathematics-Calculated in fall 2012 based on results of new statewide mathematics assessments administered the first time during the 2011-2012 school year.
B86: ** EOC - End-of-Course

Sheet CTEMS Schedules Checklist
B2: School Division: | G2: =T('Certification and Assurances'!$A$10:$G$10) -> ALEXANDRIA CITY PUBLIC SCHOOLS | M2: Division Number: | P2: ='Certification and Assurances'!$I$10 -> 101
A5: CTEMS CHECKLIST
A6: 2014-2015
A8: 1. | B8: CTEMS Schedules Required for School Divisions (Schedules in red to be completed only if changes have occurred from previous year.)
B10: X | C10: Schedule 1 - Stakeholder Participation/Involvement | I10: X | J10: Schedule 10 - Using Data to Improve Career and Technical Education
B11: X | C11: Schedule 2 - Application for Local Career Cluster/Pathway Plans of Study | I11: X | J11: Schedule 11 - Sufficient Size, Scope, and Quality of Program Services and Activities
B12: X | C12: Schedule 3 - Special Populations Report | I12: X | J12: Schedule 12 - Secondary/Postsecondary Linkages, Employment Counseling, and Placement Services
C13: Schedule 4 - Strengthen/Improve Academic and Technical Skills | I13: X | J13: Schedule 13 - Equity Provisions of General Education Provision Act
C14: Schedule 5 - All Aspects of Industry | I14: X | J14: Schedule 14 - Labor Market Needs
C15: Schedule 6 - Technology in Career and Technical Education | I15: X | J15: Schedule 15 - Participation in Regional Technical Education Programs
B16: X | C16: Schedule 7 - Professional Development Provided | I16: X | J16: Schedule 16 - Career and Technical Education Financial Data
B17: X | C17: Schedule 8 - Evaluation of Career and Technical Education Programs | I17: X | J17: Schedule 17 - Budget of Perkins Funds
B18: X | C18: Schedule 9 - Improvement, Expansion, and Modernization | I18: X | J18: Schedule 18 - Administration/Administrative Equipment Funds and Budget Summary Worksheet
A20: 2. | B20: CTEMS Schedules Required for Regional Centers (Schedules in red to be completed only if changes have occurred from previous year.)
C22: Schedule 1 - Stakeholder Participation/Involvement | J22: Schedule 8 - Evaluation of Career and Technical Education Programs
C23: Schedule 2 - Application for Local Career Cluster/Pathway Plans of Study | J23: Schedule 9 - Improvement, Expansion, and Modernization
C24: Schedule 3 - Special Populations Report | J24: Schedule 10 - Using Data to Improve Career and Technical Education
C25: Schedule 4 - Strengthen/Improve Academic and Technical Skills | J25: Schedule 12 - Secondary/Postsecondary Linkages, Employment Counseling, and Placement Services
C26: Schedule 5 - All Aspects of Industry | J26: Schedule 13 - Equity Provisions of General Education Provision Act
C27: Schedule 6 - Technology in Career and Technical Education | J27: Schedule 14 - Labor Market Needs
C28: Schedule 7 - Professional Development Provided | J28: Schedule 16 - Career and Technical Education Financial Data

Sheet CTEMS Schedules
B2: School Division: | G2: =T('Certification and Assurances'!$A$10:$G$10) -> ALEXANDRIA CITY PUBLIC SCHOOLS | M2: Division Number: | P2: ='Certification and Assurances'!$I$10 -> 101
A5: CTEMS SCHEDULE 1
A6: Stakeholder Participation/Involvement
A7: 2014-2015 Plan
B9: Section 134(a) and Section 135 (c)(1): The local plan shall be for the same period of time as the State Plan submitted under Section 122. Please check the types of involvement each of the groups below have had in the development of your local plan. Section 134(b)(5) and Section 135(c)(1): Describe how parents, students, academic and career and technical education teachers, faculty, administrators, career guidance and academic counselors, representatives of tech prep consortia (if applicable), representatives of the entities participating in activities described in Section 117 of Public Law 105-220 (if applicable), representatives of business (including small business) and industry, labor organizations, representatives of special populations, and other interested individuals are involved in the development, implementation, and evaluation of career and technical education programs assisted under this Act, and how such individuals and entities are effectively informed about, and assisted in understanding the requirements of this title, including career and technical programs of study.
J11: supplied information | K11: provided substantive consultation | L11: reviewed and critiqued the plan or sections | M11: of the plan
B12: Representatives of business/industry | J12: X | K12: X | L12: X
B13: Representatives of labor (if applicable)
B14: Community representatives and other interested individuals | J14: X | K14: X | L14: X
B15: Representatives of special populations | J15: X
B16: Representatives of local community colleges | J16: X | K16: X | L16: X
B17: Teachers | J17: X | K17: X | L17: X
B18: Parents | J18: X | K18: X | L18: X
B19: Students | J19: X
B22: Describe how the required respective groups were involved in the development, implementation, and evaluation of your career and technical programs utilizing data from prior year(s) and/or any local evaluations that may have been conducted during the 2013-2014 school year.
B23: The Alexandria City School Board appoints the membership of the Alexandria Career and Technical Education Advisory Committee based on the representative groups mentioned above. The Advisory Committee is the official stakeholder group used to evaluate the local Career and Technical Education program and to make recommendations to the School Board. The Advisory Committee reviews curriculum for relevance, performance data for program evaluation, follow-up information for student completer satisfaction, and demographics for equal opportunity. The committee also makes recommendations to the School Board on how to strengthen the total program.
B27: School Division: | G27: =T('Certification and Assurances'!$A$10:$G$10) -> ALEXANDRIA CITY PUBLIC SCHOOLS | M27: Division Number: | P27: ='Certification and Assurances'!$I$10 -> 101
A30: CTEMS SCHEDULE 1 (Continued)
A31: Stakeholder Participation/Involvement
A32: 2014-2015 Plan
B34: The local advisory committee for CTE must be involved in the development, implementation, and evaluation of CTE programs. The advisory committee, which meets regularly, is a group of persons representing business, industry, labor (if applicable), public agencies, education, and the community for the purpose of providing recommendations, direction, and assistance to CTE. Note. The local advisory committee may be used for this purpose if membership is expanded to include representation from the following groups: parents, students, teachers, business and industry, labor organizations, local community colleges, special populations, and other interested individuals. Other persons may be invited to participate at the discretion of the eligible recipient. Ex-officio members should include the CTE administrator. List below only one individual from each category on the local advisory committee who have been appointed to serve in the development, implementation, and evaluation of CTE programs.
B36: Group ID Letter: | D36: P | E36: : Parents | H36: B&I | I36: : Business and Industry
D37: S | E37: : Students | H37: CC | I37: : Local Community College
D38: T | E38: : Teachers | H38: SP | I38: : Special Populations
D39: L | E39: : Labor Organization | H39: O | I39: : Community Representative/Other Interested Individuals
B41: NAME/TITLE OR POSITION | H41: NAME OF COMPANY/BUSINESS/ORGANIZATION | N41: GROUP ID LETTER
B42: Tommy White | H42: Institute for Public/Private Partnerships | N42: P
B43: Brooke Wilson | H43: T. C. Williams High School | N43: S
B44: James Pondolfino | H44: T. C. Williams High School | N44: T
B45: George Valenzuela | H45: Intelligent Evolution, Inc. | N45: B&I
B46: Christine Candio | H46: iNova Alexandria Hospital | N46: B&I
B47: Meredith Ayala | H47: Northern Virginia Community College | N47: CC
B48: Nyrisha Beckman-Farrow | H48: One Good Deed | N48: O
B49: Mary McGreevy | H49: T. C. Williams High School | N49: SP
B51: Describe how members of the CTE advisory committee and the stakeholder participants involved in the development of the plan are annually informed about and assist in the understanding of the Act, and list activities planned in which the stakeholders will be involved for the 2014-2015 school year.
B52: CTE Advisory Committee members are kept informed of CTE initiatives and current legislation at regular meetings and through email and telephone communication. Stakeholder participants including teachers, department chairs, academic principals, special education staff, guidance staff, and community college representatives are included in CTE program updates and collaborative planning and in-service opportunities for teachers. Activities for the 2014-2015 school year will focus on increasing dual enrollment opportunities, reviewing emerging trends, and studying labor projections through 2020 to help evaluate the relevance, scope, and sequence of CTE programs in Alexandria City Public Schools.
B57: School Division: | G57: =T('Certification and Assurances'!$A$10:$G$10) -> ALEXANDRIA CITY PUBLIC SCHOOLS | M57: Division Number: | P57: ='Certification and Assurances'!$I$10 -> 101
A60: CTEMS SCHEDULE 2
A61: Application for Local Career Cluster/Pathway Plans of Study
A62: 2014-2015 Plan
A64: INSTRUCTIONS/PROCEDURES
A66: Assistance for completing CTE Career Cluster/Pathway Plans of Study may be found at:
A67: http://www.doe.virginia.gov/instruction/career_technical/career_clusters/index.shtml
A69: Assistance for completing Academic and Career Plans may be found at :
A70: http://www.doe.virginia.gov/instruction/graduation/academic_career_plan.shtml
A72: As of school year 2012-2103 and thereafter, all divisions shall implement at least one or more Career Pathway Plans of Study representing at least three or more corresponding Career Clusters (Section 134(b)(3)(A) and Section 135(b)). However, to ensure your division’s previous Plans of Study (submitted over the past 7 years) are preparing students to meet local, regional, and state economic and workforce needs, you are advised to review and revise each as necessary. Please e-mail a Microsoft Word file of your completed 2014-2015 Plan of Study to CTE@doe.virginia.gov for separate approval.
A74: LIST ALL PREVIOUSLY APPROVED PLANS OF STUDY
A76: CLUSTER | F76: PATHWAY | L76: YEAR SUBMITTED | N76: LOCAL OR STATE TEMPLATE (Please indicate which is being used.)
A77: Information Technology | F77: Network Systems-Information Technology | L77: 2007-2008 | N77: Local
A78: Health Science | F78: Therapeutic Services-Health Science | L78: 2008-2009 | N78: Local
A79: Finance | F79: Banking Services-Finance | L79: 2009-2010 | N79: Local
A80: Marketing | F80: Marketing Management-Marketing | L80: 2010-2011 | N80: Local
A81: Arts, A/V Technology & Communications | F81: Printing Technology-Arts, Audio/Video Technology and Communications | L81: 2011-2012 | N81: Local
A82: Human Services | F82: Early Childhood Development and Services-Human Services | L82: 2012-2013 | N82: Local
A83: Transportation, Distribution, & Logistics | F83: Facility and Mobile Equipment Maintenance-Transportation, Distribution and Logistics | L83: 2013-2014 | N83: Local
B102: School Division: | G102: =T('Certification and Assurances'!$A$10:$G$10) -> ALEXANDRIA CITY PUBLIC SCHOOLS | M102: Division Number: | P102: ='Certification and Assurances'!$I$10 -> 101
A103: Application for Local Career Cluster/Pathway Plans of Study
A104: 2014-2015 Plan
A105: Please e-mail a Microsoft Word file of your completed 2014-2015 Career Cluster/Pathway Plan of Study template to CTE@doe.virginia.gov for separate approval.
A106: PLANS OF STUDY SUBMITTED FOR 2014- 2015 LOCAL PLAN
A108: CLUSTER for 2014-2015 Year | F108: PATHWAY | N108: LOCAL OR STATE TEMPLATE (Please indicate which is being used.)
A109: Science, Technology, Engineering, & Mathematics | F109: Engineering and Technology-Science, Technology, Engineering and Mathematics | N109: Local
B124: 1. Improve the academic and technical skills of students participating in CTE programs by strengthening the academic and CTE components of such programs through the integration of coherent and rigorous content aligned with challenging academic standards and relevant CTE programs to ensure learning in – i. the core academic subjects (as defined in Section 9101 of the Elementary and Secondary Education Act of 1965); and ii. career and technical education subjects.* 2. Provide students with strong experience in, and understanding of, all aspects of an industry.* 3. Ensure that students who participate in such CTE programs are taught to the same coherent and rigorous content aligned with challenging academic standards as are taught to all other students.* 4. Encourage CTE students at the secondary level to enroll in rigorous and challenging courses in core academic subjects (as defined in section 9101 of the Elementary and Secondary Education Act of 1965).* 5. May include the opportunity for secondary education students to participate in dual or concurrent enrollment programs or other ways to acquire postsecondary education credits/elements. 6. Must lead to a high school diploma and, if applicable, an industry certification/state licensure/NOCTI assessment at the secondary level and to an industry-recognized credential or certificate at the postsecondary level, or an associate or baccalaureate degree.*
B125: * Required
B127: School Division: | G127: =T('Certification and Assurances'!$A$10:$G$10) -> ALEXANDRIA CITY PUBLIC SCHOOLS | M127: Division Number: | P127: ='Certification and Assurances'!$I$10 -> 101
A130: CTEMS SCHEDULE 3
A131: Special Populations Report
A132: 2014-2015 Plan
B134: A. Identify the number of economically disadvantaged, disabled, limited English proficient (LEP)/English Language learners (ELL), migrant, single-parent, nontraditional (underrepresented gender groups), and displaced-homemaker students eligible for services provided by your school division.
B137: Number of Economically Disadvantaged (including foster children) (Grades K-12) | D137: Number of Disabled (Grades K-12) | F137: Number of Limited English Proficient/ English Language Learners (Grades K-12) | H137: Number of Migrant Students (Grades K-12) | J137: Number of Single-parent (including single pregnant women) (Grades 7-12) | L137: Number of Non-traditional (under-represented gender groups) (Grades 7-12) | N137: Number of Displaced-home-makers (Grades 7-12)
B138: 8100 | D138: 1520 | F138: 4516 | H138: 0 | J138: 50 | L138: 646 | N138: 0
B140: B. Section 134 (b)(8)(A) and Section 135(b)(9) and (c)(4) and (c)(14, 16 and 17): Describe how you will annually review career and technical education programs and identify and adopt strategies to overcome barriers that result in lowering rates of access to or lowering success in the programs for special populations.
B142: Access of students identified in special populations to career and technical education programs is based upon identifying students and providing an awareness of the programs available. ACPS relies upon quality student data that will supply reliable lists of persons identified within each special population category. Identification allows us to make students, parents, and counselors aware of the career and technical opportunitities available on the secondary level. School guidance counselors, social workers, special education case managers, and ELL teachers are all provided with information that assists parents and students with the seleciton of courses that meet their career goals and unique schedules. Using the Annual Performance Report for ACPS Career and Technical Education, we will review performance data of students who are members of special populations to ensure the continued success of all students in our programs.
B145: School Division: | G145: =T('Certification and Assurances'!$A$10:$G$10) -> ALEXANDRIA CITY PUBLIC SCHOOLS | M145: Division Number: | P145: ='Certification and Assurances'!$I$10 -> 101
A147: CTEMS SCHEDULE 3 (continued)
A148: Special Populations Report
A149: 2014-2015 Plan
B151: C. Section 134 (b)(8)(A) and Section 135(b)(9) and (c)(4) and (c)(17): Describe how you will annually provide programs designed to enable the special populations to meet the state adjusted levels of performance.
B153: All of Alexandria City Public Schools Career and Technical Education programs are open to special populations. At the beginning of each year, CTE teachers, special education teachers, and ELL specialists collaborate to evaluate and adjust the curriculum and teaching strategies to meet the needs of individual students. Communication continues throughout the school year, and CTE teachers keep abreast of current inclusion and differentiation practices through local professional development. Support of special education students includes inclusion specialists, transition specialists, and paraprofessionals who directly assist students to increase performance. The high school special education department chair is currently a member of the CTE Advisory Committee, and another member of the committee represents the ELL population.
B156: D. Section 134 (b)(9) and Section 135(b)(9) and (c)(4): Describe how individuals who are members of special populations will not be discriminated against on the basis of their status as members of the special populations.
B158: Career and Technical Education courses are open to all secondary students. The Alexandria City School Board does not discriminate on the basis of race, color, national origin, sex, disability, age, religion, sexual orientation, marital status, status as a parent, or pregnancy in its programs and activities. No student is discriminated against on the basis of their status as a member of a special population. If a student's individual education plan includes special accommodations, the Alexandria City Public School system will meet or exceed the necessary requirements.
B166: School Division: | G166: =T('Certification and Assurances'!$A$10:$G$10) -> ALEXANDRIA CITY PUBLIC SCHOOLS | M166: Division Number: | P166: ='Certification and Assurances'!$I$10 -> 101
A168: CTEMS SCHEDULE 3 (continued)
A169: Special Populations Report
A170: 2014-2015 Plan
B172: E. Section 134(b)(8)(C) and (b)(10) and Section 135(b)(9) and (c)(4) and (c)(17): Provide activities/services to prepare special populations, including single parents and displaced homemakers, for high-skill, high-wage, or high-demand occupations that will lead to self-sufficiency.
A174: SERVICES PROVIDED | C174: DISADVANTAGED | E174: DISABLED | G174: LEP | I174: MIGRANT | K174: SINGLE-PARENTS | M174: NON-TRADITIONAL | O174: DISPLACED HOME-MAKERS
A175: Supplemental basic academic instruction | C175: X | E175: X | G175: X | K175: X | M175: X
A176: Supplemental social growth activities | C176: X | E176: X | G176: X | K176: X | M176: X
A177: High-interest reading materials for struggling readers | C177: X | E177: X | G177: X | K177: X | M177: X
A178: Instructional or teacher aides | C178: X | E178: X | G178: X | K178: X | M178: X
A179: Mentoring programs | C179: X | E179: X | G179: X | K179: X | M179: X
A180: Systematic tutoring | C180: X | E180: X | G180: X | K180: X | M180: X
A181: Career and technical assessment | C181: X | E181: X | G181: X | K181: X | M181: X
A182: Career counseling | C182: X | E182: X | G182: X | K182: X | M182: X
A183: Transportation for work experience | C183: X | E183: X | G183: X | K183: X | M183: X
A184: Apprenticeship | C184: X | E184: X | G184: X | K184: X | M184: X
A185: Work-study programs | C185: X | E185: X | G185: X | K185: X | M185: X
A186: Coop education | C186: X | E186: X | G186: X | K186: X | M186: X
A187: Job placement and follow-up | C187: X | E187: X | G187: X | K187: X | M187: X
A188: Job-coach and job-transition services | C188: X | E188: X | G188: X | K188: X | M188: X
A189: Work-site visitation | C189: X | E189: X | G189: X | K189: X | M189: X
A190: CT student organizations | C190: X | E190: X | G190: X | K190: X | M190: X
A191: Field trips | C191: X | E191: X | G191: X | K191: X | M191: X
A192: Child-care
A193: Special transportation
A194: Special seminars for fathers, teens, etc. | K194: X | M194: X
A195: Other: (specify)
A196: Please indicate if non-federal funds, in whole or in part, are used to support any of the above services. | C196: X | E196: X | G196: X | K196: X | M196: X
B199: School Division: | G199: =T('Certification and Assurances'!$A$10:$G$10) -> ALEXANDRIA CITY PUBLIC SCHOOLS | M199: Division Number: | P199: ='Certification and Assurances'!$I$10 -> 101
A201: CTEMS SCHEDULE 4
A202: Strengthen/Improve Academic and Technical Skills
A203: 2014-2015 Plan
B205: Section 134(b)(3)(B,D,E) and Section 135(b)(1)(A,B) and (c)(12): Please follow the directions below to show how you strengthen/improve the academic and technical skills of students participating in career and technical education programs.
B207: Directions For each of your Perkins supported programs, place an X by each activity that applies to that program and that is intended to improve the academic and technical skills of students participating in that program. For example, if “Using academic/career and technical team teaching” is designed to improve the academic and technical skills of students in Agriculture, place an X in the field marked “Using academic/career and technical team teaching” under Agriculture.
B209: ACTIVITIES | H209: DIVISION PROGRAMS
H210: AGRICULTURE | I210: BUSINESS & INFORMATION TECHNOLOGY | J210: CAREER CONNECTIONS | K210: FAMILY AND CONSUMER SCIENCES | L210: HEALTH AND MEDICAL SCIENCES | M210: JROTC | N210: MARKETING | O210: TECHNOLOGY EDUCATION | P210: TRADE & INDUSTRIAL EDUCATION
B211: a. Integrating academics with career and technical education programs to ensure learning in the core academic and career and technical subjects
B212: b. Providing a coherent sequence of courses to ensure learning in the core academic and career and technical subjects
B213: c. Developing and implementing academic and career and technical collaborative lesson plans
B214: d. Implementing academic/career and technical team teaching
B215: e. Providing dual credit options
B216: f. Providing joint academic/career and technical instructional assignments
B217: g. Planning for and participating in joint academic/career and technical field trips to business/industry
B218: h. Providing a senior research project with academic and career and technical education components
B219: i. Other (specify)
B223: School Division: | G223: =T('Certification and Assurances'!$A$10:$G$10) -> ALEXANDRIA CITY PUBLIC SCHOOLS | M223: Division Number: | P223: ='Certification and Assurances'!$I$10 -> 101
A225: CTEMS SCHEDULE 5
A226: All Aspects of Industry
A227: 2014-2015 Plan
B229: Section 134(b)(3)(C) and Section 135(b)(3) and (c)(6 and 11): Provide students with experience in and understanding of all aspects of an industry.
B231: Directions For each of your Perkins supported programs, place an X in the field for every activity that applies to that program and provides students with experience in and understanding of all aspects of an industry.
B233: ACTIVITIES | H233: DIVISION PROGRAMS
H234: AGRICULTURE | I234: BUSINESS & INFORMATION TECHNOLOGY | J234: CAREER CONNECTIONS | K234: FAMILY AND CONSUMER SCIENCES | L234: HEALTH AND MEDICAL SCIENCES | M234: JROTC | N234: MARKETING | O234: TECHNOLOGY EDUCATION | P234: TRADE & INDUSTRIAL EDUCATION
B235: a. CTE curriculum frameworks reviewed by career/technical advisory committee to ensure that the local curriculum provides students with experience in and understanding of all aspects of an industry
B236: b. Work-site experiences provided
B237: Clinical Experience
B238: Cooperative Education
B239: Internship
B240: Job Shadowing
B241: Mentorship
B242: Service Learning
B243: Student Apprenticeship
B244: c. Participation of Business/Industry Reps
B245: Mentoring opportunities provided
B246: Shadowing opportunities provided
B247: Business/industry tours
B248: Class presentations
B249: Program Evaluation
B250: Other Specify:
B253: School Division: | G253: =T('Certification and Assurances'!$A$10:$G$10) -> ALEXANDRIA CITY PUBLIC SCHOOLS | M253: Division Number: | P253: ='Certification and Assurances'!$I$10 -> 101
A255: CTEMS SCHEDULE 6
A256: Technology in Career and Technical Education
A257: 2014-2015 Plan
B259: Section 135(b)(4 and 7) and (c)(9 and 12): Develop, improve, or expand the use of technology in career and technical education.
B261: Directions For each of your Perkins supported programs, place an X in the field for any activity you will use in that program to develop, improve, or expand the use of technology.
B263: ACTIVITIES | H263: DIVISION PROGRAMS
H264: AGRICULTURE | I264: BUSINESS & INFORMATION TECHNOLOGY | J264: CAREER CONNECTIONS | K264: FAMILY AND CONSUMER SCIENCES | L264: HEALTH AND MEDICAL SCIENCES | M264: JROTC | N264: MARKETING | O264: TECHNOLOGY EDUCATION | P264: TRADE & INDUSTRIAL EDUCATION
B265: a. Train career and technical personnel to use state-of-the-art technology, which may include distance/virtual learning.
B266: b. Provide students with the academic and career and technical skills that lead to entry into high-tech and communications fields.
B267: c. Work with high-tech industries to offer volunteer internship, mentoring, shadowing, and/or cooperative education experience(s).
B268: d. Provide technology applications in classroom instruction (including computer applications).
B269: e. Verify that instructional personnel demonstrate proficiency in Virginia Technology Standards.
B270: f. Other (specify)
B281: School Division: | G281: =T('Certification and Assurances'!$A$10:$G$10) -> ALEXANDRIA CITY PUBLIC SCHOOLS | M281: Division Number: | P281: ='Certification and Assurances'!$I$10 -> 101
A283: CTEMS SCHEDULE 7
A284: Professional Development
A285: 2014-2015 Plan
B287: Section 134(b)(4) and Section 135(b)(5) and (c)(8, 16 and 19): Describe how comprehensive professional development (including initial teacher preparation) for career and technical education, academic, guidance, and administrative personnel will be provided that promotes the integration of coherent and rigorous content aligned with challenging academic standards and relevant career and technical education (including curriculum development). Section 134(b)(12)(A and B): Describe efforts to improve (A) the recruitment and retention of career and technical education teachers, faculty, and career guidance and academic counselors, including individuals in groups underrepresented in the teaching profession; and (B) the transition to teaching from business and industry.
B289: Directions For each of your Perkins supported programs, place an X in the field for any activity you will use to provide professional development for teachers, counselors or administrators associated with that program.
B291: ACTIVITIES | H291: DIVISION PROGRAMS
H292: AGRICULTURE | I292: BUSINESS & INFORMATION TECHNOLOGY | J292: CAREER CONNECTIONS | K292: FAMILY AND CONSUMER SCIENCES | L292: HEALTH AND MEDICAL SCIENCES | M292: JROTC | N292: MARKETING | O292: TECHNOLOGY EDUCATION | P292: TRADE & INDUSTRIAL EDUCATION
B293: a. In-service and pre-service professional development:
C294: (1)Training for guidance on (a) career clusters, career pathways, and career assessment; and (b) implementation of Plans of Study. | I294: X | J294: X | K294: X | L294: X | M294: X | N294: X | O294: X | P294: X
C295: (2)Integration of coherent and rigorous content aligned with challenging academic standards and relevant career and technical education programs to ensure learning in the core academic subjects as defined in section 9101 of the ESEA of 1965; and career and technical education subjects. | I295: X | J295: X | K295: X | L295: X | M295: X | N295: X | O295: X | P295: X
C296: (3)Appropriate postsecondary courses and/or workshops for teachers with provisional licenses and/or career switchers | I296: X | J296: X | K296: X | L296: X | M296: X | N296: X | O296: X | P296: X
C297: (4)State-of-the-art career/technical programs and techniques | I297: X | J297: X | K297: X | L297: X | M297: X | N297: X | O297: X | P297: X
C298: (5)Effective teaching skills based on research | I298: X | J298: X | K298: X | L298: X | M298: X | N298: X | O298: X | P298: X
C299: (6)Effective practices to improve parental and community involvement | I299: X | J299: X | K299: X | L299: X | M299: X | N299: X | O299: X | P299: X
C300: (7)Opportunities for National Board Certification to provide teachers access to Virginia incentives | I300: X | J300: X | K300: X | L300: X | M300: X | N300: X | O300: X | P300: X
B301: b. Programs for teachers and other school personnel to ensure they remain current with all aspects of an industry | I301: X | J301: X | K301: X | L301: X | M301: X | N301: X | O301: X | P301: X
B302: c. Regional, state, and college teacher placement job fairs | I302: X | J302: X | K302: X | L302: X | M302: X | N302: X | O302: X | P302: X
B303: d. Virginia Teachers for Tomorrow training program. | K303: X
B304: e. Business/industry internship programs for teachers | I304: X | J304: X | K304: X | L304: X | M304: X | N304: X | O304: X | P304: X
B305: f. Other (specify)
B307: School Division: | G307: =T('Certification and Assurances'!$A$10:$G$10) -> ALEXANDRIA CITY PUBLIC SCHOOLS | M307: Division Number: | P307: ='Certification and Assurances'!$I$10 -> 101
A309: CTEMS SCHEDULE 7 (continued)
A310: Professional Development
A311: 2014-2015 Plan
B313: Directions For each of your Perkins supported programs, indicate the number of teachers who will participate in the activity described below.
B315: ACTIVITIES | H315: DIVISION PROGRAMS
B316: Note: All professional development provided must meet requirements as identified in Perkins IV. Indicate the number of teachers/ administrators participating within the fields for each program area(s). | H316: AGRICULTURE | I316: BUSINESS & INFORMATION TECHNOLOGY | J316: CAREER CONNECTIONS | K316: FAMILY AND CONSUMER SCIENCES | L316: HEALTH AND MEDICAL SCIENCES | M316: JROTC | N316: MARKETING | O316: TECHNOLOGY EDUCATION | P316: TRADE & INDUSTRIAL EDUCATION
B317: a. State conferences, institutes, or workshops (including virtual training programs) | I317: 5 | J317: 1 | K317: 2 | L317: 3 | N317: 4 | O317: 4 | P317: 3
B318: b. National conferences, institutes, or workshops | I318: 1 | K318: 1 | N318: 1 | O318: 1
B319: c. Local conferences, institutes, or workshops | I319: 8 | J319: 1 | K319: 5 | L319: 3 | M319: 3 | N319: 4 | O319: 9 | P319: 8
B320: d. Internship in industry | I320: 1 | L320: 1 | N320: 1 | O320: 1 | P320: 2
B321: e. Other (specify)
B341: School Division: | G341: =T('Certification and Assurances'!$A$10:$G$10) -> ALEXANDRIA CITY PUBLIC SCHOOLS | M341: Division Number: | P341: ='Certification and Assurances'!$I$10 -> 101
A343: CTEMS SCHEDULE 8
A344: Evaluation of Career and Technical Education Programs
... 258 more rows

Sheet Prefills (hidden)
A1: Name | B1: Code | D1: check X | F1: GroupID | H1: Years | J1: SL | L1: Cluster_Areas | N1: Pathways | P1: Use_of_Funds | Q1: FSL | S1: i. Agricultural Education | W1: 1000 - Personal Services | Z1: Original | AB1: 1S1-Reading
A2: ACCOMACK COUNTY PUBLIC SCHOOLS | B2: 1 | D2: X | F2: P | H2: 2006-2007 | J2: State | L2: Agriculture, Food, & Natural Resources | N2: Food Products and Processing Systems-Agriculture, Food and Natural Resources | P2: R1A--Strengthen skills of students through the integration of academics with career and technical education programs through a coherent sequence of courses, such as career and technical programs of study described in the section 122(c)(1)(A), to ensure learning in the core academic subjects (as defined in section 9101 of the Elementary and Secondary Education Act of 1965). | Q2: FED | S2: ii. Business and Information Technology | W2: 2000 - Employee Benefits | Z2: Revision | AB2: 1S1-Reading-Special Populations
A3: ALBEMARLE COUNTY PUBLIC SCHOOLS | B3: 2 | F3: S | H3: 2007-2008 | J3: Local | L3: Arts, A/V Technology & Communications | N3: Plant Systems-Agriculture, Food and Natural Resources | P3: R1B--Strengthen skills of students through the integration of academics with career and technical education programs through a coherent sequence of courses, such as career and technical programs of study described in the section 122(c)(1)(A), to ensure learning in career and technical education subjects. | Q3: ST | S3: iii. Career Connections | W3: 3000 - Purchased Services | Z3: Amendment | AB3: 1S1-Mathematics
A4: ALEXANDRIA CITY PUBLIC SCHOOLS | B4: 101 | F4: T | H4: 2008-2009 | L4: Education & Training | N4: Animal Systems-Agriculture, Food and Natural Resources | P4: R2--Link career and technical education at the secondary level and career and technical education at the postsecondary level, including by offering the relevant elements of not less than 1 career and technical program of study. | Q4: LOC | S4: iv. Family and Consumer Sciences | W4: 4000 - Internal Services | AB4: 1S1-Mathematics-Special Populations
A5: ALLEGHANY COUNTY PUBLIC SCHOOLS | B5: 3 | F5: L | H5: 2009-2010 | L5: Government & Public Administration | N5: Power, Structural and Technical Systems-Agriculture, Food and Natural Resources | P5: R3--Provide students with strong experience in and understanding of all aspects of an industry, which may include work-based learning experiences. | S5: v. Health and Medical Sciences | W5: 5000 - Other Charges | AB5: 2S1A-Student Competency Rate
A6: AMELIA COUNTY PUBLIC SCHOOLS | B6: 4 | F6: B&I | H6: 2010-2011 | L6: Hospitality & Tourism | N6: Natural Resources Systems-Agriculture, Food and Natural Resources | P6: R4A--Develop, improve, or expand the use of technology in career and technical education, which may include training of career and technical education teachers, faculty, and administrators to use technology, which may include distance learning. | S6: vi. Marketing | W6: 8000 – Capital Outlay/Equipment | AB6: 2S1A-Student Competency Rate-Special Populations
A7: AMELIA-NOTTOWAY VO-TECH CENTER | B7: 311 | F7: CC | H7: 2011-2012 | L7: Information Technology | N7: Environmental Service Systems-Agriculture, Food and Natural Resources | P7: R4B--Develop, improve, or expand the use of technology in career and technical education, which may include providing career and technical education students with the academic and career and technical skills (including the mathematics and science knowledge that provides a strong basis for such skills) that lead to entry into the technology fields. | S7: vii. Technology Education | AB7: 2S1B-Completers Participating in Credentialing Tests
A8: AMHERST COUNTY PUBLIC SCHOOLS | B8: 5 | F8: SP | H8: 2012-2013 | L8: Manufacturing | N8: Agribusiness Systems-Agriculture, Food and Natural Resources | P8: R4C--Develop, improve, or expand the use of technology in career and technical education, which may include encouraging schools to collaborate with technology industries to offer voluntary internships and mentoring programs, including programs that improve the mathematics and science knowledge of students. | S8: viii. Trade and Industrial Education | AB8: 2S1B-Completers Participating in Credentialing Tests-Special Populations
A9: APPOMATTOX COUNTY PUBLIC SCHOOLS | B9: 6 | F9: O | H9: 2013-2014 | L9: Science, Technology, Engineering, & Mathematics | N9: Design/Pre-Construction-Architecture and Construction | P9: R5Ai--Provide sustained professional development programs that are consistent with section 122 to secondary and postsecondary teachers, faculty, administrators, and career guidance and academic counselors who are involved in integrated career and technical education programs, including in-service and preservice training on effective integration and use of challenging academic and career and technical education provided jointly with academic teachers to the extent practicable. | S9: ix. All | AB9: 2S1C-Test Takers Passing Credentialing Tests
A10: ARLINGTON COUNTY PUBLIC SCHOOLS | B10: 7 | L10: Architecture & Construction | N10: Construction-Architecture and Construction | P10: R5Aii--Provide sustained professional development programs that are consistent with section 122 to secondary and postsecondary teachers, faculty, administrators, and career guidance and academic counselors who are involved in integrated career and technical education programs, including in-service and preservice training on effective teaching skills based on research that includes promising practices. | AB10: 2S1C-Test Takers Passing Credentialing Tests-Special Populations
A11: AUGUSTA COUNTY PUBLIC SCHOOLS | B11: 8 | F11: YesorNo | L11: Business Management & Administration | N11: Maintenance/Operations-Architecture and Construction | P11: R5Aiii--Provide sustained professional development programs that are consistent with section 122 to secondary and postsecondary teachers, faculty, administrators, and career guidance and academic counselors who are involved in integrated career and technical education programs, including in-service and preservice training on effective practices to improve parental and community involvement. | AB11: 2S1D-Completers Passing Credential Test Rate
A12: BATH COUNTY PUBLIC SCHOOLS | B12: 9 | F12: Yes | L12: Finance | N12: Audio and Video Technology and Film-Arts, Audio/Video Technology and Communications | P12: R5Aiv--Provide sustained professional development programs that are consistent with section 122 to secondary and postsecondary teachers, faculty, administrators, and career guidance and academic counselors who are involved in integrated career and technical education programs, including in-service and preservice training on effective use of scientifically based research and data to improve instruction. | AB12: 2S1D-Completers Passing Credential Test Rate-Special Populations
A13: BEDFORD CITY PUBLIC SCHOOLS | B13: 140 | F13: No | L13: Health Science | N13: Printing Technology-Arts, Audio/Video Technology and Communications | P13: R5B--Provide sustained professional development programs that are consistent with section 122 to secondary and postsecondary teachers, faculty, administrators, and career guidance and academic counselors who are involved in integrated career and technical education programs, including support of education programs for teachers of career and technical education in public schools and other public school personnel who are involved in the direct delivery of educational services to career and technical education students, to ensure that such teachers and personnel stay current with all aspects of an industry. | AB13: 2S1E-College and Career Readiness
A14: BEDFORD COUNTY PUBLIC SCHOOLS | B14: 10 | L14: Human Services | N14: Visual Arts-Arts, Audio/Video Technology and Communications | P14: R5C--Provide sustained professional development programs that are consistent with section 122 to secondary and postsecondary teachers, faculty, administrators, and career guidance and academic counselors who are involved in integrated career and technical education programs, including internship programs that provide relevant business experience. | AB14: 2S1E-College and Career Readiness-Special Populations
A15: BLAND COUNTY PUBLIC SCHOOLS | B15: 11 | L15: Law, Public Safety, Corrections, & Security | N15: Performing Arts-Arts, Audio/Video Technology and Communications | P15: R5D--Provide sustained professional development programs that are consistent with section 122 to secondary and postsecondary teachers, faculty, administrators, and career guidance and academic counselors who are involved in integrated career and technical education programs, including programs designed to train teachers specifically in the effective use and application of technology to improve instruction. | AB15: 3S1-Secondary School Completion
A16: BOTETOURT COUNTY PUBLIC SCHOOLS | B16: 12 | L16: Marketing | N16: Journalism and Broadcasting-Arts, Audio/Video Technology and Communications | P16: R6--Develop and implement evaluations of the career and technical education programs carried out with funds under this title, including an assessment of how the needs of special populations are being met. | AB16: 4S1-Graduation Rate
A17: BRIDGING COMMUNITIES REG. CTE CENTER | B17: 313 | L17: Transportation, Distribution, & Logistics | N17: Telecommunications-Arts, Audio/Video Technology and Communications | P17: R7--Initiate, improve, expand, and modernize quality career and technical education programs, including relevant technology. | AB17: 5S1-Secondary Placement Rate
A18: BRISTOL CITY PUBLIC SCHOOLS | B18: 102 | N18: General Management-Business Management and Administration | P18: R8--Provide services and activities that are of sufficient size, scope, and quality to be effective. | AB18: 5S1-Secondary Placement Rate-Special Populations
A19: BRUNSWICK COUNTY PUBLIC SCHOOLS | B19: 13 | N19: Business Information Management-Business Management and Administration | P19: R9--Provide activities to prepare special populations, including single parents and displaced homemakers who are enrolled in career and technical education programs, for high skill, high wage, or high demand occupations that will lead to self-sufficiency. | AB19: 5S1-Program Completer Response Rate
A20: BUCHANAN COUNTY PUBLIC SCHOOLS | B20: 14 | N20: Human Resources Management-Business Management and Administration | P20: P1--To involve parents, businesses, and labor organizations as appropriate, in the design, implementation, and evaluation of career and technical education programs authorized under this title, including establishing effective programs and procedures to enable informed and effective participation in such programs. | AB20: 6S1-Nontraditional Enrollment
A21: BUCKINGHAM COUNTY PUBLIC SCHOOLS | B21: 15 | N21: Operations management-Business Management and Administration | P21: P2A--To provide career guidance and academic counseling, which may include information described in section 118, for students participating in career and technical education programs that improves graduation rates and provides information on postsecondary and career options, including baccalaureate degree programs, for secondary students, which activities may include the use of graduation and career plans. | AB21: 6S2-Nontraditional Completion
A22: BUENA VISTA CITY PUBLIC SCHOOLS | B22: 103 | N22: Administrative Support-Business Management and Administration | P22: P2B--To provide career guidance and academic counseling, which may include information described in section 118, for students participating in career and technical education programs that provides assistance for postsecondary students, including for adult students who are changing careers or updating skills.
A23: CAMPBELL COUNTY PUBLIC SCHOOLS | B23: 16 | N23: Administration and Administrative Support-Education and Training | P23: P3A--For local education and business (including small business) partnerships, including for work-related experiences for students, such as internships, cooperative education, school-based enterprises, entrepreneurship, and job shadowing that are related to career and technical education programs.
A24: CAROLINE COUNTY PUBLIC SCHOOLS | B24: 17 | N24: Professional Support Services-Education and Training | P24: P3B--For local education and business (including small business) partnerships, including for adjunct faculty arrangements for qualified industry professionals.
A25: CARROLL COUNTY PUBLIC SCHOOLS | B25: 18 | N25: Teaching/Training-Education and Training | P25: P3C--For local education and business (including small business) partnerships, including for industry experience for teachers and faculty.
A26: CHARLES CITY COUNTY PUBLIC SCHOOLS | B26: 19 | N26: Securities and Investments-Finance | P26: P4--To provide programs for special populations.
A27: CHARLOTTE COUNTY PUBLIC SCHOOLS | B27: 20 | N27: Business Finance-Finance | P27: P5--To assist career and technical student organizations.
A28: CHARLOTTESVILLE CITY PUBLIC SCHOOLS | B28: 104 | N28: Accounting-Finance | P28: P6--For mentoring and support services.
A29: CHARLOTTESVILLE-ALBEMARLE VTC | B29: 301 | N29: Insurance-Finance | P29: P7--For leasing, purchasing, upgrading or adapting equipment, including instructional aids and publications (including support for library resources) designed to strengthen and support academic and technical skill achievement.
A30: CHESAPEAKE CITY PUBLIC SCHOOLS | B30: 136 | N30: Banking Services-Finance | P30: P8--For teacher preparation programs that address the integration of academic and career and technical education and that assist individuals who are interested in becoming career and technical education teachers and faculty, including individuals with experience in business and industry.
A31: CHESTERFIELD COUNTY PUBLIC SCHOOLS | B31: 21 | N31: Governance-Government and Public Administration | P31: P9--To develop and expand accessible postsecondary program offerings at times and in formats that are accessible for students, including working students, including through the use of distance education.
A32: CLARKE COUNTY PUBLIC SCHOOLS | B32: 22 | N32: National Security-Government and Public Administration | P32: P10A--To develop initiatives that facilitate the transition of sub-baccalaureate career and technical education students into baccalaureate degree programs, including articulation agreements between sub-baccalaureate degree granting career and technical education postsecondary educational institutions and baccalaureate degree granting postsecondary educational institutions.
A33: CLIFTON FORGE CITY | B33: 105 | N33: Foreign Service-Government and Public Administration | P33: P10B--To develop initiatives that facilitate the transition of sub-baccalaureate career and technical education students into baccalaureate degree programs, including postsecondary dual and concurrent enrollment programs.
A34: COLONIAL BEACH TOWN PUBLIC SCHOOLS | B34: 202 | N34: Planning-Government and Public Administration | P34: P10C--To develop initiatives that facilitate the transition of sub-baccalaureate career and technical education students into baccalaureate degree programs, including academic and financial aid counseling for sub-baccalaureate career and technical education students that informs the students of the opportunities for pursuing a baccalaureate degree and advises the students on how to meet any transfer requirements.
A35: COLONIAL HEIGHTS CITY PUBLIC SCHOOLS | B35: 106 | N35: Revenue and Taxation-Government and Public Administration | P35: P10DI--To develop initiatives that facilitate the transition of sub-baccalaureate career and technical education students into baccalaureate degree programs, including other initiatives to encourage the pursuit of a baccalaureate degree.
A36: COVINGTON CITY PUBLIC SCHOOLS | B36: 107 | N36: Regulation-Government and Public Administration | P36: P10DII--To develop initiatives that facilitate the transition of sub-baccalaureate career and technical education students into baccalaureate degree programs, including other initiatives to overcome barriers to enrollment in and completion of baccalaureate degree programs, including geographic and other barriers affecting rural students and special populations.
A37: CRAIG COUNTY PUBLIC SCHOOLS | B37: 23 | N37: Public Management and Administration-Government and Public Administration | P37: P11--To provide activities to support entrepreneurship education and training.
A38: CULPEPER COUNTY PUBLIC SCHOOLS | B38: 24 | N38: Therapeutic Services-Health Science | P38: P12--For improving or developing new career and technical education courses, including the development of new proposed career and technical programs of study for consideration by the eligible agency and courses that prepare individuals academically and technically for high skill, high wage, or high demand occupations and dual or concurrent enrollment opportunities by which career and technical education students at the secondary level could obtain postsecondary credit to count towards an associate or baccalaureate degree.
A39: CUMBERLAND COUNTY PUBLIC SCHOOLS | B39: 25 | N39: Diagnostic Services-Health Science | P39: P13--To develop and support small, personalized career-themed learning communities.
A40: DANVILLE CITY PUBLIC SCHOOLS | B40: 108 | N40: Health Informatics-Health Science | P40: P14--To provide support for family and consumer sciences programs.
A41: DEPARTMENT OF CORRECTIONS | B41: 930 | N41: Support Services-Health Science | P41: P15--To provide career and technical education programs for adults and school dropouts to complete the secondary school education, or upgrade the technical skills, of the adults and school dropouts.
A42: DEPARTMENT OF JUVENILE JUSTICE | B42: 917 | N42: Biotechnology Research and Development-Health Science | P42: P16--To provide assistance to individuals who have participated in services and activities under this Act in continuing their education or training or finding an appropriate job, such as through referral to the system established under section 121 of Public Law 105-220 (29 U.S.C. 2801 et seq.).
A43: DICKENSON COUNTY PUBLIC SCHOOLS | B43: 26 | N43: Restaurants and Food/Beverage Services-Hospitality and Tourism | P43: P17--To support training and activities (such as mentoring and outreach) in non-traditional fields.
A44: DINWIDDIE COUNTY PUBLIC SCHOOLS | B44: 27 | N44: Lodging-Hospitality and Tourism | P44: P18--To provide support for training programs in automotive technologies.
A45: EMPORIA CITY PUBLIC SCHOOLS | B45: 138 | N45: Travel and Tourism-Hospitality and Tourism | P45: P19A--To pool a portion of such funds with a portion of funds available to not less than 1 other eligible recipient for innovative initiatives, which may include improving the initial preparation and professional development of career and technical education teachers, faculty, administrators, and counselors.
A46: ESSEX COUNTY PUBLIC SCHOOLS | B46: 28 | N46: Recreation, Amusements and Attractions-Hospitality and Tourism | P46: P19Bi--To pool a portion of such funds with a portion of funds available to not less than 1 other eligible recipient for innovative initiatives, which may include establishing, enhancing, or supporting systems for accountability data collection under this Act.
A47: FAIRFAX CITY PUBLIC SCHOOLS | B47: 134 | N47: Early Childhood Development and Services-Human Services | P47: P19Bii--To pool a portion of such funds with a portion of funds available to not less than 1 other eligible recipient for innovative initiatives, which may include establishing, enhancing, or supporting systems for reporting data under this Act.
A48: FAIRFAX COUNTY PUBLIC SCHOOLS | B48: 29 | N48: Counseling and Mental Health Services-Human Services | P48: P19C--To pool a portion of such funds with a portion of funds available to not less than 1 other eligible recipient for innovative initiatives, which may include implementing career and technical programs of study described in section 122(c)(1)(A).
A49: FALLS CHURCH CITY PUBLIC SCHOOLS | B49: 109 | N49: Family and Community Services-Human Services | P49: P19D--To pool a portion of such funds with a portion of funds available to not less than 1 other eligible recipient for innovative initiatives, which may include implementing technical assessments.
A50: FAUQUIER COUNTY PUBLIC SCHOOLS | B50: 30 | N50: Personal Care Services-Human Services | P50: P20--To support other career and technical education activities that are consistent with the purpose of this Act.
A51: FLOYD COUNTY PUBLIC SCHOOLS | B51: 31 | N51: Consumer Services-Human Services
A52: FLUVANNA COUNTY PUBLIC SCHOOLS | B52: 32 | N52: Network Systems-Information Technology
A53: FRANKLIN CITY PUBLIC SCHOOLS | B53: 135 | N53: Information Support and Services-Information Technology
A54: FRANKLIN COUNTY PUBLIC SCHOOLS | B54: 33 | N54: Web and Digital Communications-Information Technology
A55: FREDERICK COUNTY PUBLIC SCHOOLS | B55: 34 | N55: Programming and Software Development-Information Technology
A56: FREDERICKSBURG CITY PUBLIC SCHOOLS | B56: 110 | N56: Correction Services-Law, Public Safety, Corrections and Security
A57: GALAX CITY PUBLIC SCHOOLS | B57: 111 | N57: Emergency and Fire Management Services-Law, Public Safety, Corrections and Security
A58: GILES COUNTY PUBLIC SCHOOLS | B58: 35 | N58: Security and Protective Services-Law, Public Safety, Corrections and Security
A59: GLOUCESTER COUNTY PUBLIC SCHOOLS | B59: 36 | N59: Law Enforcement Services-Law, Public Safety, Corrections and Security
A60: GOOCHLAND COUNTY PUBLIC SCHOOLS | B60: 37 | N60: Legal Services-Law, Public Safety, Corrections and Security
A61: GRAYSON COUNTY PUBLIC SCHOOLS | B61: 38 | N61: Production-Manufacturing
A62: GREENE COUNTY PUBLIC SCHOOLS | B62: 39 | N62: Manufacturing Production Process Development-Manufacturing
A63: GREENSVILLE COUNTY PUBLIC SCHOOLS | B63: 40 | N63: Maintenance, Installation and Repair-Manufacturing
A64: HALIFAX COUNTY PUBLIC SCHOOLS | B64: 41 | N64: Quality Assurance-Manufacturing
A65: HAMPTON CITY PUBLIC SCHOOLS | B65: 112 | N65: Logistics and Inventory Control-Manufacturing
A66: HANOVER COUNTY PUBLIC SCHOOLS | B66: 42 | N66: Health, Safety and Environmental Assurance-Manufacturing
A67: HARRISONBURG CITY PUBLIC SCHOOLS | B67: 113 | N67: Marketing Management-Marketing
A68: HENRICO COUNTY PUBLIC SCHOOLS | B68: 43 | N68: Professional Sales-Marketing
A69: HENRY COUNTY PUBLIC SCHOOLS | B69: 44 | N69: Merchandising-Marketing
A70: HIGHLAND COUNTY PUBLIC SCHOOLS | B70: 45 | N70: Marketing Communications-Marketing
A71: HOPEWELL CITY PUBLIC SCHOOLS | B71: 114 | N71: Marketing Research-Marketing
A72: ISLE OF WIGHT COUNTY PUBLIC SCHOOLS | B72: 46 | N72: Engineering and Technology-Science, Technology, Engineering and Mathematics
A73: JACKSON RIVER VOCATIONAL CENTER | B73: 302 | N73: Science and Math-Science, Technology, Engineering and Mathematics
A74: JAMES CITY COUNTY PUBLIC SCHOOLS | B74: 47 | N74: Transportation Operations-Transportation, Distribution and Logistics
A75: KING AND QUEEN COUNTY PUBLIC SCHOOLS | B75: 49 | N75: Logistics Planning and Management Services-Transportation, Distribution and Logistics
A76: KING GEORGE COUNTY PUBLIC SCHOOLS | B76: 48 | N76: Warehousing and Distribution Center Operations-Transportation, Distribution and Logistics
A77: KING WILLIAM COUNTY PUBLIC SCHOOLS | B77: 50 | N77: Facility and Mobile Equipment Maintenance-Transportation, Distribution and Logistics
A78: LANCASTER COUNTY PUBLIC SCHOOLS | B78: 51 | N78: Transportation Systems/Infrastructure Planning, Ma-Transportation, Distribution and Logistics
A79: LEE COUNTY PUBLIC SCHOOLS | B79: 52 | N79: Health, Safety and Environmental Management-Transportation, Distribution and Logistics
A80: LEXINGTON CITY PUBLIC SCHOOLS | B80: 137 | N80: Sales and Service-Transportation, Distribution and Logistics
A81: LOUDOUN COUNTY PUBLIC SCHOOLS | B81: 53
A82: LOUISA COUNTY PUBLIC SCHOOLS | B82: 54
A83: LUNENBURG COUNTY PUBLIC SCHOOLS | B83: 55
A84: LYNCHBURG CITY PUBLIC SCHOOLS | B84: 115
A85: MADISON COUNTY PUBLIC SCHOOLS | B85: 56
A86: MANASSAS CITY PUBLIC SCHOOLS | B86: 143
A87: MANASSAS PARK CITY PUBLIC SCHOOLS | B87: 144
A88: MARTINSVILLE CITY PUBLIC SCHOOLS | B88: 116
A89: MASSANUTTEN VOCATIONAL CENTER | B89: 304
A90: MATHEWS COUNTY PUBLIC SCHOOLS | B90: 57
A91: MECKLENBURG COUNTY PUBLIC SCHOOLS | B91: 58
A92: MIDDLESEX COUNTY PUBLIC SCHOOLS | B92: 59
A93: MONTGOMERY COUNTY PUBLIC SCHOOLS | B93: 60
A94: NELSON COUNTY PUBLIC SCHOOLS | B94: 62
A95: NEW HORIZONS TECHNICAL CENTER | B95: 307
A96: NEW KENT COUNTY PUBLIC SCHOOLS | B96: 63
A97: NEWPORT NEWS CITY PUBLIC SCHOOLS | B97: 117
A98: NORFOLK CITY PUBLIC SCHOOLS | B98: 118
A99: NORTHAMPTON COUNTY PUBLIC SCHOOLS | B99: 65
A100: NORTHERN NECK VOCATIONAL CENTER | B100: 310
A101: NORTHUMBERLAND COUNTY PUBLIC SCHOOLS | B101: 66
A102: NORTON CITY PUBLIC SCHOOLS | B102: 119
A103: NOTTOWAY COUNTY PUBLIC SCHOOLS | B103: 67
A104: ORANGE COUNTY PUBLIC SCHOOLS | B104: 68
A105: P.D. PRUDEN VOC-TECH CENTER | B105: 308
A106: PAGE COUNTY PUBLIC SCHOOLS | B106: 69
A107: PATRICK COUNTY PUBLIC SCHOOLS | B107: 70
A108: PETERSBURG CITY PUBLIC SCHOOLS | B108: 120
A109: PITTSYLVANIA COUNTY PUBLIC SCHOOLS | B109: 71
A110: POQUOSON CITY PUBLIC SCHOOLS | B110: 142
A111: PORTSMOUTH CITY PUBLIC SCHOOLS | B111: 121
A112: POWHATAN COUNTY PUBLIC SCHOOLS | B112: 72
A113: PRINCE EDWARD COUNTY PUBLIC SCHOOLS | B113: 73
A114: PRINCE GEORGE COUNTY PUBLIC SCHOOLS | B114: 74
A115: PRINCE WILLIAM COUNTY PUBLIC SCHOOLS | B115: 75
A116: PULASKI COUNTY PUBLIC SCHOOLS | B116: 77
A117: RADFORD CITY PUBLIC SCHOOLS | B117: 122
A118: RAPPAHANNOCK COUNTY PUBLIC SCHOOLS | B118: 78
A119: RICHMOND CITY PUBLIC SCHOOLS | B119: 123
A120: RICHMOND COUNTY PUBLIC SCHOOLS | B120: 79
A121: ROANOKE CITY PUBLIC SCHOOLS | B121: 124
A122: ROANOKE COUNTY PUBLIC SCHOOLS | B122: 80
A123: ROCKBRIDGE COUNTY PUBLIC SCHOOLS | B123: 81
A124: ROCKINGHAM COUNTY PUBLIC SCHOOLS | B124: 82
A125: ROWANTY VOCATIONAL-TECH CENTER | B125: 309
A126: RUSSELL COUNTY PUBLIC SCHOOLS | B126: 83
A127: SALEM CITY PUBLIC SCHOOLS | B127: 139
A128: SCOTT COUNTY PUBLIC SCHOOLS | B128: 84
A129: SHENANDOAH COUNTY PUBLIC SCHOOLS | B129: 85
A130: SMYTH COUNTY PUBLIC SCHOOLS | B130: 86
A131: SOUTHAMPTON COUNTY PUBLIC SCHOOLS | B131: 87
A132: SPOTSYLVANIA COUNTY PUBLIC SCHOOLS | B132: 88
A133: STAFFORD COUNTY PUBLIC SCHOOLS | B133: 89
A134: STAUNTON CITY PUBLIC SCHOOLS | B134: 126
A135: SUFFOLK CITY PUBLIC SCHOOLS | B135: 127
A136: SURRY COUNTY PUBLIC SCHOOLS | B136: 90
A137: SUSSEX COUNTY PUBLIC SCHOOLS | B137: 91
A138: TAZEWELL COUNTY PUBLIC SCHOOLS | B138: 92
A139: VALLEY VOCATIONAL-TECHNICAL CENTER | B139: 306
A140: VIRGINIA BEACH CITY PUBLIC SCHOOLS | B140: 128
A141: VIRGINIA COMMUNITY COLLEGE SYSTEMS | B141: 854
A142: WARREN COUNTY PUBLIC SCHOOLS | B142: 93
A143: WASHINGTON COUNTY PUBLIC SCHOOLS | B143: 94
A144: WAYNESBORO CITY PUBLIC SCHOOLS | B144: 130
A145: WEST POINT TOWN PUBLIC SCHOOLS | B145: 207
A146: WESTMORELAND COUNTY PUBLIC SCHOOLS | B146: 95
A147: WILLIAMSBURG CITY PUBLIC SCHOOLS | B147: 131
A148: WINCHESTER CITY PUBLIC SCHOOLS | B148: 132
A149: WISE COUNTY PUBLIC SCHOOLS | B149: 96
A150: WYTHE COUNTY PUBLIC SCHOOLS | B150: 97
A151: YORK COUNTY PUBLIC SCHOOLS | B151: 98

Sheet Sheet1 (hidden)
B1: Agriculture, Food and Natural Resources
A2: Agriculture, Food and Natural Resources | B2: o Food Products and Processing Systems | I2: =A2&B2 -> Agriculture, Food and Natural Resourceso Food Products and Processing Systems | R2: =MID(B2,9,50)&"-"&A2 -> Food Products and Processing Systems-Agriculture, Food and Natural Resources
A3: Agriculture, Food and Natural Resources | B3: o Plant Systems | I3: =A3&B3 -> Agriculture, Food and Natural Resourceso Plant Systems | R3: =MID(B3,9,50)&"-"&A3 -> Plant Systems-Agriculture, Food and Natural Resources
A4: Agriculture, Food and Natural Resources | B4: o Animal Systems | I4: Agriculture, Food and Natural Resourceso Animal Systems | R4: Animal Systems-Agriculture, Food and Natural Resources
A5: Agriculture, Food and Natural Resources | B5: o Power, Structural and Technical Systems | I5: Agriculture, Food and Natural Resourceso Power, Structural and Technical Systems | R5: Power, Structural and Technical Systems-Agriculture, Food and Natural Resources
A6: Agriculture, Food and Natural Resources | B6: o Natural Resources Systems | I6: Agriculture, Food and Natural Resourceso Natural Resources Systems | R6: Natural Resources Systems-Agriculture, Food and Natural Resources
A7: Agriculture, Food and Natural Resources | B7: o Environmental Service Systems | I7: Agriculture, Food and Natural Resourceso Environmental Service Systems | R7: Environmental Service Systems-Agriculture, Food and Natural Resources
A8: Agriculture, Food and Natural Resources | B8: o Agribusiness Systems | I8: Agriculture, Food and Natural Resourceso Agribusiness Systems | R8: Agribusiness Systems-Agriculture, Food and Natural Resources
A9: Architecture and Construction | B9: o Design/Pre-Construction | I9: Architecture and Constructiono Design/Pre-Construction | R9: Design/Pre-Construction-Architecture and Construction
A10: Architecture and Construction | B10: o Construction | I10: Architecture and Constructiono Construction | R10: Construction-Architecture and Construction
A11: Architecture and Construction | B11: o Maintenance/Operations | I11: Architecture and Constructiono Maintenance/Operations | R11: Maintenance/Operations-Architecture and Construction
A12: Arts, Audio/Video Technology and Communications | B12: o Audio and Video Technology and Film | I12: Arts, Audio/Video Technology and Communicationso Audio and Video Technology and Film | R12: Audio and Video Technology and Film-Arts, Audio/Video Technology and Communications
A13: Arts, Audio/Video Technology and Communications | B13: o Printing Technology | I13: Arts, Audio/Video Technology and Communicationso Printing Technology | R13: Printing Technology-Arts, Audio/Video Technology and Communications
A14: Arts, Audio/Video Technology and Communications | B14: o Visual Arts | I14: Arts, Audio/Video Technology and Communicationso Visual Arts | R14: Visual Arts-Arts, Audio/Video Technology and Communications
A15: Arts, Audio/Video Technology and Communications | B15: o Performing Arts | I15: Arts, Audio/Video Technology and Communicationso Performing Arts | R15: Performing Arts-Arts, Audio/Video Technology and Communications
A16: Arts, Audio/Video Technology and Communications | B16: o Journalism and Broadcasting | I16: Arts, Audio/Video Technology and Communicationso Journalism and Broadcasting | R16: Journalism and Broadcasting-Arts, Audio/Video Technology and Communications
A17: Arts, Audio/Video Technology and Communications | B17: o Telecommunications | I17: Arts, Audio/Video Technology and Communicationso Telecommunications | R17: Telecommunications-Arts, Audio/Video Technology and Communications
A18: Business Management and Administration | B18: o General Management | I18: Business Management and Administrationo General Management | R18: General Management-Business Management and Administration
A19: Business Management and Administration | B19: o Business Information Management | I19: Business Management and Administrationo Business Information Management | R19: Business Information Management-Business Management and Administration
A20: Business Management and Administration | B20: o Human Resources Management | I20: Business Management and Administrationo Human Resources Management | R20: Human Resources Management-Business Management and Administration
A21: Business Management and Administration | B21: o Operations management | I21: Business Management and Administrationo Operations management | R21: Operations management-Business Management and Administration
A22: Business Management and Administration | B22: o Administrative Support | I22: Business Management and Administrationo Administrative Support | R22: Administrative Support-Business Management and Administration
A23: Education and Training | B23: o Administration and Administrative Support | I23: Education and Trainingo Administration and Administrative Support | R23: Administration and Administrative Support-Education and Training
A24: Education and Training | B24: o Professional Support Services | I24: Education and Trainingo Professional Support Services | R24: Professional Support Services-Education and Training
A25: Education and Training | B25: o Teaching/Training | I25: Education and Trainingo Teaching/Training | R25: Teaching/Training-Education and Training
A26: Finance | B26: o Securities and Investments | I26: Financeo Securities and Investments | R26: Securities and Investments-Finance
A27: Finance | B27: o Business Finance | I27: Financeo Business Finance | R27: Business Finance-Finance
A28: Finance | B28: o Accounting | I28: Financeo Accounting | R28: Accounting-Finance
A29: Finance | B29: o Insurance | I29: Financeo Insurance | R29: Insurance-Finance
A30: Finance | B30: o Banking Services | I30: Financeo Banking Services | R30: Banking Services-Finance
A31: Government and Public Administration | B31: o Governance | I31: Government and Public Administrationo Governance | R31: Governance-Government and Public Administration
A32: Government and Public Administration | B32: o National Security | I32: Government and Public Administrationo National Security | R32: National Security-Government and Public Administration
A33: Government and Public Administration | B33: o Foreign Service | I33: Government and Public Administrationo Foreign Service | R33: Foreign Service-Government and Public Administration
A34: Government and Public Administration | B34: o Planning | I34: Government and Public Administrationo Planning | R34: Planning-Government and Public Administration
A35: Government and Public Administration | B35: o Revenue and Taxation | I35: Government and Public Administrationo Revenue and Taxation | R35: Revenue and Taxation-Government and Public Administration
A36: Government and Public Administration | B36: o Regulation | I36: Government and Public Administrationo Regulation | R36: Regulation-Government and Public Administration
A37: Government and Public Administration | B37: o Public Management and Administration | I37: Government and Public Administrationo Public Management and Administration | R37: Public Management and Administration-Government and Public Administration
A38: Health Science | B38: o Therapeutic Services | I38: Health Scienceo Therapeutic Services | R38: Therapeutic Services-Health Science
A39: Health Science | B39: o Diagnostic Services | I39: Health Scienceo Diagnostic Services | R39: Diagnostic Services-Health Science
A40: Health Science | B40: o Health Informatics | I40: Health Scienceo Health Informatics | R40: Health Informatics-Health Science
A41: Health Science | B41: o Support Services | I41: Health Scienceo Support Services | R41: Support Services-Health Science
A42: Health Science | B42: o Biotechnology Research and Development | I42: Health Scienceo Biotechnology Research and Development | R42: Biotechnology Research and Development-Health Science
A43: Hospitality and Tourism | B43: o Restaurants and Food/Beverage Services | I43: Hospitality and Tourismo Restaurants and Food/Beverage Services | R43: Restaurants and Food/Beverage Services-Hospitality and Tourism
A44: Hospitality and Tourism | B44: o Lodging | I44: Hospitality and Tourismo Lodging | R44: Lodging-Hospitality and Tourism
A45: Hospitality and Tourism | B45: o Travel and Tourism | I45: Hospitality and Tourismo Travel and Tourism | R45: Travel and Tourism-Hospitality and Tourism
A46: Hospitality and Tourism | B46: o Recreation, Amusements and Attractions | I46: Hospitality and Tourismo Recreation, Amusements and Attractions | R46: Recreation, Amusements and Attractions-Hospitality and Tourism
A47: Human Services | B47: o Early Childhood Development and Services | I47: Human Serviceso Early Childhood Development and Services | R47: Early Childhood Development and Services-Human Services
A48: Human Services | B48: o Counseling and Mental Health Services | I48: Human Serviceso Counseling and Mental Health Services | R48: Counseling and Mental Health Services-Human Services
A49: Human Services | B49: o Family and Community Services | I49: Human Serviceso Family and Community Services | R49: Family and Community Services-Human Services
A50: Human Services | B50: o Personal Care Services | I50: Human Serviceso Personal Care Services | R50: Personal Care Services-Human Services
A51: Human Services | B51: o Consumer Services | I51: Human Serviceso Consumer Services | R51: Consumer Services-Human Services
A52: Information Technology | B52: o Network Systems | I52: Information Technologyo Network Systems | R52: Network Systems-Information Technology
A53: Information Technology | B53: o Information Support and Services | I53: Information Technologyo Information Support and Services | R53: Information Support and Services-Information Technology
A54: Information Technology | B54: o Web and Digital Communications | I54: Information Technologyo Web and Digital Communications | R54: Web and Digital Communications-Information Technology
A55: Information Technology | B55: o Programming and Software Development | I55: Information Technologyo Programming and Software Development | R55: Programming and Software Development-Information Technology
A56: Law, Public Safety, Corrections and Security | B56: o Correction Services | I56: Law, Public Safety, Corrections and Securityo Correction Services | R56: Correction Services-Law, Public Safety, Corrections and Security
A57: Law, Public Safety, Corrections and Security | B57: o Emergency and Fire Management Services | I57: Law, Public Safety, Corrections and Securityo Emergency and Fire Management Services | R57: Emergency and Fire Management Services-Law, Public Safety, Corrections and Security
A58: Law, Public Safety, Corrections and Security | B58: o Security and Protective Services | I58: Law, Public Safety, Corrections and Securityo Security and Protective Services | R58: Security and Protective Services-Law, Public Safety, Corrections and Security
A59: Law, Public Safety, Corrections and Security | B59: o Law Enforcement Services | I59: Law, Public Safety, Corrections and Securityo Law Enforcement Services | R59: Law Enforcement Services-Law, Public Safety, Corrections and Security
A60: Law, Public Safety, Corrections and Security | B60: o Legal Services | I60: Law, Public Safety, Corrections and Securityo Legal Services | R60: Legal Services-Law, Public Safety, Corrections and Security
A61: Manufacturing | B61: o Production | I61: Manufacturingo Production | R61: Production-Manufacturing
A62: Manufacturing | B62: o Manufacturing Production Process Development | I62: Manufacturingo Manufacturing Production Process Development | R62: Manufacturing Production Process Development-Manufacturing
A63: Manufacturing | B63: o Maintenance, Installation and Repair | I63: Manufacturingo Maintenance, Installation and Repair | R63: Maintenance, Installation and Repair-Manufacturing
A64: Manufacturing | B64: o Quality Assurance | I64: Manufacturingo Quality Assurance | R64: Quality Assurance-Manufacturing
A65: Manufacturing | B65: o Logistics and Inventory Control | I65: Manufacturingo Logistics and Inventory Control | R65: Logistics and Inventory Control-Manufacturing
A66: Manufacturing | B66: o Health, Safety and Environmental Assurance | I66: Manufacturingo Health, Safety and Environmental Assurance | R66: Health, Safety and Environmental Assurance-Manufacturing
A67: Marketing | B67: o Marketing Management | I67: =A67&B67 -> Marketingo Marketing Management | R67: =MID(B67,9,50)&"-"&A67 -> Marketing Management-Marketing
A68: Marketing | B68: o Professional Sales | I68: Marketingo Professional Sales | R68: Professional Sales-Marketing
A69: Marketing | B69: o Merchandising | I69: Marketingo Merchandising | R69: Merchandising-Marketing
A70: Marketing | B70: o Marketing Communications | I70: Marketingo Marketing Communications | R70: Marketing Communications-Marketing
A71: Marketing | B71: o Marketing Research | I71: =A71&B71 -> Marketingo Marketing Research | R71: Marketing Research-Marketing
A72: Science, Technology, Engineering and Mathematics | B72: o Engineering and Technology | I72: Science, Technology, Engineering and Mathematicso Engineering and Technology | R72: Engineering and Technology-Science, Technology, Engineering and Mathematics
A73: Science, Technology, Engineering and Mathematics | B73: o Science and Math | I73: Science, Technology, Engineering and Mathematicso Science and Math | R73: Science and Math-Science, Technology, Engineering and Mathematics
A74: Transportation, Distribution and Logistics | B74: o Transportation Operations | I74: Transportation, Distribution and Logisticso Transportation Operations | R74: Transportation Operations-Transportation, Distribution and Logistics
A75: Transportation, Distribution and Logistics | B75: o Logistics Planning and Management Services | I75: Transportation, Distribution and Logisticso Logistics Planning and Management Services | R75: Logistics Planning and Management Services-Transportation, Distribution and Logistics
A76: Transportation, Distribution and Logistics | B76: o Warehousing and Distribution Center Operations | I76: Transportation, Distribution and Logisticso Warehousing and Distribution Center Operations | R76: Warehousing and Distribution Center Operations-Transportation, Distribution and Logistics
A77: Transportation, Distribution and Logistics | B77: o Facility and Mobile Equipment Maintenance | I77: Transportation, Distribution and Logisticso Facility and Mobile Equipment Maintenance | R77: Facility and Mobile Equipment Maintenance-Transportation, Distribution and Logistics
A78: Transportation, Distribution and Logistics | B78: o Transportation Systems/Infrastructure Planning, Management and Regulation | I78: Transportation, Distribution and Logisticso Transportation Systems/Infrastructure Planning, Management and Regulation | R78: Transportation Systems/Infrastructure Planning, Ma-Transportation, Distribution and Logistics
A79: Transportation, Distribution and Logistics | B79: o Health, Safety and Environmental Management | I79: Transportation, Distribution and Logisticso Health, Safety and Environmental Management | R79: Health, Safety and Environmental Management-Transportation, Distribution and Logistics
A80: Transportation, Distribution and Logistics | B80: o Sales and Service | I80: Transportation, Distribution and Logisticso Sales and Service | R80: Sales and Service-Transportation, Distribution and Logistics
B81: · PATHWAYS:
B83: CLUSTER:Architecture and Construction
B84: · PATHWAYS:
B86: CLUSTER:Arts, Audio/Video Technology and Communications
B87: · PATHWAYS:
B89: CLUSTER:Business Management and Administration
B90: · PATHWAYS:
B92: CLUSTER:Education and Training
B93: · PATHWAYS:
B95: CLUSTER:Finance
B96: · PATHWAYS:
B100: CLUSTER:Government and Public Administration
B101: · PATHWAYS:
B103: CLUSTER:Health Science
B104: · PATHWAYS:
B106: CLUSTER:Hospitality and Tourism
B107: · PATHWAYS:
B109: CLUSTER:Human Services
B110: · PATHWAYS:
B112: CLUSTER:Information Technology
B113: · PATHWAYS:
B115: CLUSTER:Law, Public Safety, Corrections and Security
B116: · PATHWAYS:
B119: CLUSTER:Manufacturing
B120: · PATHWAYS:
B122: CLUSTER:Marketing
B123: · PATHWAYS:
B125: CLUSTER:Science, Technology, Engineering and Mathematics
B126: · PATHWAYS:
B128: CLUSTER:Transportation, Distribution and Logistics
B129: · PATHWAYS:

Sheet Sheet2 (hidden)

Sheet Sheet3 (hidden)
A1: Academic Attainment
A2: Academic Attainment – Special Populations
A3: Technical Skills Attainment
A4: Technical Skills Attainment - Special Populations
A5: Secondary School Completion
A6: Student Graduation Rates
A7: Secondary Placement
A8: Secondary Placement – Special Populations
A9: Completer Response Rate
A10: Nontraditional Participants
A11: Nontraditional Completion
